{"text_format":"1","workbook":"xlsx","n_sheets":4,"sheets":["Summary","Database","Lists","Visualisation of data"],"not_rendered":{"charts":0,"images":1,"macros":1,"external_links":1,"defined_names":2,"comments":1,"pivot_tables":0},"unopened":[],"bounds":{"document_bytes":16777216,"sheet_cells":100000,"rows_first":2000,"rows_last":500,"rows_between":2000,"halvings":0,"cell_chars":16384,"cell_head_chars":4096},"cells_cut":0,"cells_raw":0,"read":"whole","date_system":"1900"}

{"sheet":"Summary","index":0,"n_rows":7,"n_cols":2,"rows_kept":7,"cut":false,"hidden":false,"merged":[]}
[null,"SET Plan - Data capture for financing programmes"]
[null,"This database gives an overview of the various financing programmes available across the EU, Member States, and members of SET Plan Action 6. It is not meant to be comprehensive nor all-encompassing and instead should serve as a starting point for research on various sources of funding. "]
[]
[]
[]
[]
[null,"This spreadsheet is the Copyright of Ecorys Brussels N.V. and has been prepared by Ricardo Energy & Environment, a trading name of Ricardo-AEA Ltd under European Commission contract  Nb. ENER-2018-453-A6 entitled DG Energy – Support to the Strategic Energy Technologies (SET) Plan Action #6 on Energy Efficiency in Industry dated 18th June 2019. The contents of this spreadsheet may not be reproduced, in whole or in part, nor passed to any organisation or person without the specific prior written permission of the European Commission - DG Energy, or of Ecorys Brussels N.V. Nor the European Commission, nor Ricardo Energy & Environment accept any liability whatsoever to any third party for any loss or damage arising from any interpretation or use of the information contained in this spreadsheet, or reliance on any views expressed therein, other than the liability that is agreed in the said contract.”"]

{"sheet":"Database","index":1,"n_rows":203,"n_cols":44,"rows_kept":203,"cut":false,"hidden":false,"merged":[]}
["Database of Financing Programmes - SET Plan Action 6 on Energy Efficiency in Industry "]
["Name of financing programme","Link to financing programme website","Focus area of programme","Type of energy measure incentivised","Country / region","Description","Financial Instrument","Sector applicability","Public or private finance","Source of finance","TRL (1-9)","Link to eligibility criteria","Description of eligibility criteria","Associated services","Description of possible policy interaction","Number of projects funded by scheme","Financial size in EUR (Total size of finance available from programme (budget, unless indicated otherwise)","Bottom range of typical size of projects in EUR","Upper range of typical size of projects in EUR","Co-funding required (Y/N)?","State aid rules that apply","Timeframe for applications","Typical duration of projects (in months)","Comments on long term vision of scheme ","% private finance required","Required return on investment","Max default risk","Revolving character of funding","Average loan maturity ","Market or concessional terms applicable","Size of consessional terms","Interest / default rate","Debt/equity ratio requirements","Volume of current credit financing","Volume of current debt financing","Default risk","Fee charged for guarantee","Size","Market or concessional rate","Description of payment scheme (e.g. up-front, exploitation, period)","Ratio own contribution vs grant targeted","Eligibility criteria2","Reference","Other comments"]
["Klima und Energie Funds","Link","Cross-cutting R&I: maximising the energy efficiency of cross-sector industrial components in a cost-efficient manner","Electricity efficiency, Heat efficiency and recovery, Carbon capture and storage, Renewable energy, Sustainable infrastructure","Austria","Seeks to support new technologies and optimise energy usage together with sustainable and emissions free energy generation","Grant/subsidies","All sectors","Public, Private","Public: national","Not known","Link",null,null,null,147160,null,null,null,null,null,null,null,"Started in 2007",null,null,null,null,null,null,null,null,null,null,null,null,null,null,null,null,null,null,"https://www.klimafonds.gv.at/"]
["Flagship Region Energy Initiative","Link","Cross-cutting R&I: maximising the energy efficiency of cross-sector industrial components in a cost-efficient manner","Renewable energy","Austria","Up until 2025 the Climate and Energy Fund of the Austrian government will invest up to 120 million Euros in 3 flagship regions.","Grant/subsidies","All sectors","Public","Public: national","Not known","Link",null,null,null,null,null,null,null,null,null,null,null,"Time-span from 2018 until 2025"]
["Österreichische Forschungsförderungsgesellschaft (FFG) programmes","Link","Cross-cutting R&I: maximising the energy efficiency of cross-sector industrial components in a cost-efficient manner","Electricity efficiency, Heat efficiency and recovery, Carbon capture and storage, Renewable energy, Sustainable infrastructure","Austria","The Austrian Research Promotion Agency (FFG) is the national funding agency for industrial research and development in Austria. \n","Grant/subsidies","All sectors","Public","Public: national","4, 5, 6, 7, 8, 9","Link",null,"Other",null,null,"€ 80.000.000 in 2015",null,null,null,null,null,null,null,null,null,null,null,null,null,null,null,null,null,null,null,null,null,null,null,null,null,"https://www.ffg.at/themenschwerpunkt/umwelt-energie"]
["Austrian Science Fund","Link","Cross-cutting R&I: improving system integration, optimal design, intelligent and flexible operation, including industrial symbiosis to increase energy and resource efficiency","Electricity efficiency, Heat efficiency and recovery, Carbon capture and storage, Renewable energy, Sustainable infrastructure","Austria","The Austrian Science Fund (FWF) is Austria's central funding organization for basic research.","Grant/subsidies","All sectors","Public","Public: national","1, 2, 3","Link","Varies with call for proposal"]
["Austrian Promotional Bank Funds","Link",null,null,"Austria","Austria Wirtschaftsservice Gesellschaft mbH (aws) is the promotional bank of the Austrian federal government.\nIt supports companies in implementing their innovative projects by offering soft loans, grants and guarantees, particularly in cases where the funds required cannot be obtained sufficiently through alternative funding.\n\nSpecific information, coaching and services are also offered to prospective, existing and expanding companies.","Guarantees, Grant/subsidies, Debt financing","All sectors","Public","Public: national","1, 2, 3, 4, 5, 6, 7, 8, 9","Link","Varies with specific funding programme","Technical assistance / project development support"]
["AMURE","Link","Cross-cutting R&I: improving system integration, optimal design, intelligent and flexible operation, including industrial symbiosis to increase energy and resource efficiency","Electricity efficiency, Renewable energy","Belgium","AMURE subsidies to support commercial and non commercial companies acting for reducing their energy use and promoting a rational use of energy in the private sector","Grant/subsidies","All sectors","Public","Public: regional","7, 8, 9","N/A","The various audits and studies must be carried out by approved energy auditors in the corresponding competency (s).\n\nThe partial or global energy audit must be carried out in accordance with the minimum specifications of the AMURE decree.\n\nThe pre-feasibility study of an investment must be carried out in accordance with the minimum specifications of the AMURE decree.\n\nThe partial and global energy audit must be carried out on existing installations. The same applies to the prefeasibility study, except where applicable, in the case of installations relating to a renewable energy source or cogeneration.",null,null,null,null,4000,null,"Yes"]
["Research Foundation Flanders R&D Programme","Link ","Cross-cutting R&I: improving system integration, optimal design, intelligent and flexible operation, including industrial symbiosis to increase energy and resource efficiency","Electricity efficiency, Heat efficiency and recovery, Carbon capture and storage, Renewable energy, Sustainable infrastructure","Belgium","R&D funding for companies (research organizations as subcontracting organizations); Open programme, covering all thematic areas, including the energy sector","Grant/subsidies, Debt financing","All sectors","Public","Public: regional","3, 4, 5, 6, 7, 8, 9","Link"]
["Flanders Innovation & Entrepreneurship (VLAIO)","Link","Cross-cutting R&I: improving system integration, optimal design, intelligent and flexible operation, including industrial symbiosis to increase energy and resource efficiency","Electricity efficiency, Heat efficiency and recovery, Carbon capture and storage, Renewable energy, Sustainable infrastructure","Belgium","\"Flanders Innovation & Entrepreneurship is the contact point for entrepreneurs in Flanders. We encourage and support innovation and entrepreneurship, and contribute to a favourable business climate. By being a one-stop-shop, we build a bridge towards stronger entrepreneurship.\"","Grant/subsidies","All sectors","Public","Public: regional","1, 2, 3, 4, 5, 6, 7, 8, 9","Link ","SMEs with a site in Flanders are eligible for the SME support mechanisms. ","Technical assistance / project development support"]
["Flanders Make","Link","Cross-cutting R&I: improving system integration, optimal design, intelligent and flexible operation, including industrial symbiosis to increase energy and resource efficiency","Electricity efficiency, Heat efficiency and recovery, Carbon capture and storage, Renewable energy, Sustainable infrastructure","Belgium","\"Based on high-tech research, we offer active support to companies in the manufacturing industry to develop and optimise products and production processes.\"","Grant/subsidies","All sectors","Public","Public: regional","1, 2, 3, 4, 5, 6, 7, 8, 9","Link"]
["Research Foundation - Flanders","Link","Sector-specific R&I: progressing emerging technologies","Electricity efficiency, Heat efficiency and recovery, Carbon capture and storage, Renewable energy, Sustainable infrastructure","Belgium","The Research Foundation – Flanders (FWO) stimulates and financially supports fundamental scientific research, strategic basic research, clinical scientific research, the purchase of large-scale and medium-scale research infrastructure, and the management of large computing capacity in Flanders.","Grant/subsidies","All sectors","Public","Public: regional","1, 2, 3","Link"]
["INNOVIRIS","Link ","Cross-cutting R&I: improving system integration, optimal design, intelligent and flexible operation, including industrial symbiosis to increase energy and resource efficiency","Electricity efficiency, Heat efficiency and recovery, Carbon capture and storage, Renewable energy","Belgium","As a regional organization for research and innovation, Innoviris aims to connect, stimulate and financially support citizens, businesses, research organizations and non-profit organizations.\n\nInnoviris plays a pioneering role and provides financial resources to feed the innovative Brussels ecosystem.\n\nWe fund your future marks our desire to contribute to the development of the Brussels-Capital Region by financing the innovative projects that will make the future of Brussels.","Grant/subsidies","All sectors","Public","Public: regional","4, 5, 6","N/A","Various dependent on the project category",null,null,180,52000000,null,null,"Yes",null,null,null,null,null,null,null,null,null,null,null,null,null,null,null,null,null,null,null,null,null,null,"https://innoviris.brussels/"]
["Walloon Energy Fund","Link","Cross-cutting R&I: maximising the energy efficiency of cross-sector industrial components in a cost-efficient manner",null,"Belgium","The Walloon Region Energy Fund supported studies and actions, including demonstration projects, to promote electricity production from natural gas and renewable sources and quality co-generation.","Grant/subsidies","All sectors","Public","Public: regional","7, 8, 9","N/A"]
["Bruxelles-Environnement","Link",null,"Electricity efficiency, Heat efficiency and recovery, Carbon capture and storage, Renewable energy, Sustainable infrastructure","Belgium","Created in 1989, Bruxelles Environnement is the environment and energy administration in the Brussels-Capital Region.","Grant/subsidies","All sectors","Public","Public: regional","Not known","Link","Bonuses, subsidies, tax deductions ... Various public aids are available for investments in favor of the environment or intended for research and development aimed at reducing the impact of activities on the environment. \n\nFor certain themes or for specific audiences, the granting of grants sometimes goes through the system of calls for projects . This system makes it possible to improve the impact of the policies carried out, and to broaden participation to new actors in the field.\nWhen these calls for projects are launched, they are the subject of specific information on the site of Bruxelles Environnement."]
["Energy Efficiency and Renewable Sources Fund /EERSF/","Link ","Cross-cutting R&I: maximising the energy efficiency of cross-sector industrial components in a cost-efficient manner","Electricity efficiency, Renewable energy","Bulgaria","EERSF was established through the Energy Efficiency Act 2004.  The initial capitalization of EERSF is entirely with grant funds, its major donors being: the Global Environment Facility through the IBRD (the World Bank) - USD 10 million; the Government of Austria - Euro 1.5 million; the Government of Bulgaria - Euro 1.5 million and several private Bulgarian companies. EERSF has the combined capacity of a lending institution, a credit guarantee facility and a consulting company. It provides technical assistance to Bulgarian enterprises, municipalities and private individuals in developing energy efficiency investment projects and then assists their financing, co-financing or plays the role of guarantor in front of other financing institutions.","Equity finance, Guarantees","All sectors","Public","Other, Public: international, Public: national","7, 8, 9","Link ","For technologically mature energy efficiency and renewable energy projects\n","Technical assistance / project development support",null,"170 (2004-2014)",23400000,null,null,null,null,null,null,"Running from 2004",null,null,null,null,null,null,null,null,null,null,null,null,null,null,null,null,null,null,"http://www.citynvest.eu/content/bulgarian-energy-efficiency-and-renewable-sources-fund-eersf","Public private partnership"]
["National Innovation Fund","Link","Sector-specific R&I: increasing the cost effectiveness of not yet economically viable technologies","Electricity efficiency, Heat efficiency and recovery, Renewable energy","Bulgaria","The main goal of the National Innovation Fund is to promote the scientific and research and development activities. The direct objective of the Fund is to promote the implementation of scientific and research and development projects and projects for technical feasibility with the aim of acquiring new or improved products, processes or services designed to raise the economic efficiency, improve the innovative potential and technological level of enterprises, increase private investment and enhance the dynamics of innovative processes.","Grant/subsidies","All sectors","Public","Public: national","Not known","Link ","The types of projects funded are:\n\nScientific and research and development projects - for those projects the maximum grant is BGN 50000 (€25563) for a period of implementation from 12 to 36 months; \nProjects for technical feasibility - for those projects the maximum grant is up to BGN 50000 (€25562) for a period of implementation up to 1 year ","Financial assistance",null,"Unknown ",null,25562,255623,"Yes",null,null,null,"Running 2014-2020",null,null,null,null,null,null,null,null,null,null,null,null,null,null,null,null,null,null,"https://www.mi.government.bg/en/themes/national-innovation-fund-19-287.html","Scientific and research and development projects – for those projects the maximum grant is BGN 500000 (€ 255623) for a period of implementation from 12 to 36 months;\nProjects for technical feasibility - for those projects the maximum grant is up to BGN 50000 (€ 25562) for a period of implementation up to 1 year."]
["Scheme for Development New Innovative Products and Services ","Link","Cross-cutting R&I: improving system integration, optimal design, intelligent and flexible operation, including industrial symbiosis to increase energy and resource efficiency","Electricity efficiency, Heat efficiency and recovery, Carbon capture and storage, Renewable energy","Cyprus","Horizontal programme - covers all R&D and innovation activities","Grant/subsidies","All sectors","Public","Public: national, Public: international","4, 5, 6","Link ","Depends on size of organisation and type of activity",null,null,null,18000000,null,null,"Yes","Eu state aid rules for R&D and innovation ","2014-2020","3 years",null,null,null,null,null,null,null,null,null,null,null,null,null,null,null,null,null,null,null,"http://www.mcit.gov.cy/mcit/sit/sit.nsf/32177ee11d0d6003c225816f001d4b05/f4c9e0e8aa03b35dc22581930028fdf4?OpenDocument"]
["Program ENERG ","N/A",null,null,"Czechia",null,"Debt financing",null,null,null,"Not known","N/A"]
["Energy Efficiency Obligation Scheme","N/A","Cross-cutting R&I: maximising the recovery of industrial excess heat/cold","Electricity efficiency, Heat efficiency and recovery, Renewable energy, Sustainable infrastructure","Denmark","The Danish EEO gives freedom to obliged parties to choose any energy saving measures as long as they can document the realised energy savings. Energy savings efforts are to be directed towards existing buildings and businesses (industries). Furthermore, the EEO should promote Best Available Technologies (BAT) wherever possible. This is done mainly through deemed savings that set requirements that go beyond the building code, as is the case for windows and insulation material","Tax rebates and exemptions","All sectors","Public","Public: national","7, 8, 9","Link ","Almost all energy savings meaasures are eligible; measures need to be additional ","Technical assistance / project development support",null,null,200000000,null,null,null,null,null,null,"Scheme expires in 2021 "]
["Renewable energy for production processes","N/A","Cross-cutting R&I: improving system integration, optimal design, intelligent and flexible operation, including industrial symbiosis to increase energy and resource efficiency",null,"Denmark","RE for production processes is aimed at converting energy consumption in the production processes of enterprises from fossil fuels to renewable energy and district heating. Grants are provided for energy efficiency measures in connection with converting production processes from fossil fuels to renewable energy. The scheme is aimed at all types of enterprise, including SMEs.","Grant/subsidies","All sectors","Public","Public: national","7, 8, 9","N/A",null,null,null,null,500000000]
["Energy Technology Development and Demonstration Program (EUDP)","Link","Sector-specific R&I: progressing emerging technologies","Electricity efficiency, Heat efficiency and recovery, Carbon capture and storage, Renewable energy, Sustainable infrastructure","Denmark","The Energy Technology Development and Demonstration Programme (EUDP) is a public grant scheme. The scheme supports new technology in the field of energy, which can contribute to meeting Denmark's energy and climate objectives.\n\nThe Energy Technology Development and Demonstration Programme (EUDP) will help create growth and jobs, increase security of supply and make Denmark independent of fossil fuels. It is a public subsidy scheme that supports new energy technology, which can contribute to achieving the Danish energy and climate goals.","Grant/subsidies","All sectors","Public","Public: national","1, 2, 3, 4, 5, 6, 7, 8, 9","Link","In the 2020 call for applications, potential projects may have, for example, been about digital infrastructure, energy efficiency improvement or sector coupling. For all projects, they must deal with digitalisation, which promotes the green transition in Europe."]
["Elforsk","Link","Cross-cutting R&I: improving system integration, optimal design, intelligent and flexible operation, including industrial symbiosis to increase energy and resource efficiency","Electricity efficiency, Heat efficiency and recovery, Sustainable infrastructure","Denmark","ELFORSK is the network companies' research and development program. We support research and development in the field of efficient energy use by the end user.","Grant/subsidies","All sectors","Public","Public: national","1, 2, 3, 4, 5, 6, 7, 8, 9","Link","ELFORSK distributes DKK 25 million annually. DKK for innovative projects that can make the use of electricity and energy in buildings and industry more efficient, create consumer flexibility and replace the use of fossil fuels with more efficient electricity-based alternatives. In this way, we support the electrification and the green transition of the Danish energy system. Applicants themselves support 50% of the funding for a project."]
["Danish Innovation Fund","Link","Sector-specific R&I: progressing emerging technologies","Electricity efficiency, Heat efficiency and recovery, Carbon capture and storage, Renewable energy, Sustainable infrastructure","Denmark","Innovation Fund Denmark creates a framework for entrepreneurs, researchers and businesses so they can develop innovative and viable solutions to society’s challenges.\n\nFor example new climate mitigating solutions, healthier food, a more effective health care, cleaner environment, green transport, start-up journeys – and much more.","Grant/subsidies","All sectors","Public","Public: national","1, 2, 3, 4, 5, 6, 7, 8, 9","Link","Varies by investment programme"]
["Nordic Energy Research","Link","Cross-cutting R&I: maximising the energy efficiency of cross-sector industrial components in a cost-efficient manner","Electricity efficiency, Heat efficiency and recovery, Carbon capture and storage, Renewable energy, Sustainable infrastructure","Denmark, Sweden, Finland, Norway","The Nordic region has ambitious goals to reduce carbon emissions and its dependence of fossil fuels, and at the same time create new growth industries based on green technology. Nordic Energy Research funds research of joint Nordic interest that supports these ambitions by expanding knowledge on sustainable energy and contributing to the development of new, competitive energy solutions.","Grant/subsidies","All sectors","Public","Public: regional","1, 2, 3","Link","Must include representatives from 3 nordic countries","administrative expertise, network building and advice",null,null,null,null,null,"No"]
["Joint Baltic-Nordic Energy Research programme","Link","Other","Electricity efficiency, Heat efficiency and recovery, Carbon capture and storage, Renewable energy, Sustainable infrastructure","Estonia, Latvia, Lithuania, Denmark, Finland, Sweden, Norway","The thematic scope of the call is limited to one (or more) of the four areas of key interest for the Baltic-Nordic Energy Research Programme: (1) Decarbonisation of the transport sector; (2) Energy efficiency in buildings and industry; (3) Energy system analysis; (4) Challenges and opportunities for regional electricity grids","Grant/subsidies","All sectors","Public","Public: national","Not known","N/A","Research consortia partners based in the Nordic (Denmark, Finland, Iceland, Norway, Sweden, and the autonomous areas of Greneland, the Faroe Islands and the Aland Islands) and Baltic (Estonia, Latvia and Lithuania) countries are eligible for funding. Partners outside these countries may participate in the research consortium but are not eligible for funding from Nordic Energy Research. ",null,null,"Three research projects of up to two years in length",465000,null,null,"No"]
["KIK Environmental Investment Centre","Link","Cross-cutting R&I: improving system integration, optimal design, intelligent and flexible operation, including industrial symbiosis to increase energy and resource efficiency","Electricity efficiency, Heat efficiency and recovery, Carbon capture and storage, Renewable energy, Sustainable infrastructure","Estonia","The EIC was founded in 2000, and for the last 20 years it has served as one of the main financiers of environmental projects in Estonia. With the support of various sources of financing, the EIC has helped to implement activities within the scope of different ministries in Estonia.","Grant/subsidies","All sectors","Public","Public: national","1, 2, 3, 4, 5, 6, 7, 8, 9","Link","Varies according to call for proposal"]
["KredEx","Link","Cross-cutting R&I: improving system integration, optimal design, intelligent and flexible operation, including industrial symbiosis to increase energy and resource efficiency","Electricity efficiency","Estonia","KredEx helps enterprises develop quicker and expand more safely to foreign markets, offering loans, venture capital, credit insurance and guarantees with state guarantee. We help people to improve their living conditions, offering loan guarantees with state guarantee for purchasing homes, as well as loans, guarantees and grants for solutions aimed at energy efficiency.","Debt financing, Guarantees, Grant/subsidies","Systems ","Public","Public: national","Not known","N/A","Varies by financial instrument"]
["Breakthrough Energy Europe (BEE)","Link","Cross-cutting R&I: maximising the energy efficiency of cross-sector industrial components in a cost-efficient manner","Electricity efficiency, Renewable energy, Sustainable infrastructure","EU-wide","Public-private partnership to accelerate the commercialization of breakthrough, low-carbon energy technologies in the EU and the global market, by providing more direct private investments into low carbon technology companies and innovators that provide solutions to climate change. \nHalf of the equity will come from Breakthrough Energy and the other half from InnovFin - risk-sharing financial instruments funded thorugh Horizon 2020, the EU's current research and innovation programme ","Risk sharing facility, Equity finance","All sectors","Public, Private","Public: international, Private: investor","6, 7, 8","N/A",null,null,null,null,100000000,null,null,null,null,"2019 - ongoing",null,"Expected to be operational in 2019"]
["Connecting Europe Facility (CEF) Energy","Link","Cross-cutting R&I: improving system integration, optimal design, intelligent and flexible operation, including industrial symbiosis to increase energy and resource efficiency","Electricity efficiency, Heat efficiency and recovery, Renewable energy, Sustainable infrastructure","EU-wide","The Connecting Europe Facility (CEF) is a key EU funding instrument developed specifically to direct investment into European transport, energy and digital infrastructures to address identified missing links and bottlenecks. Under the Connecting Europe Facility (CEF) is a funding framework to support key EU investments in transport (Trans-European Transport Networks, TEN-T), energy (Trans-European Energy Networks, TEN-E) and Broadband and Information and Communication Technologies (ICT).","Grant/subsidies, Guarantees, Debt financing","All sectors","Public","Public: international","9","Link","Varies by sector: energy, transport, telecom\n\nEnergy: Projects must be of common interest\nTelecom: Submitted proposals are assessed on the basis of eligibility, selection and award criteria\nTransport: Submitted proposals are assessed on the basis of eligibility, selection and award criteria, Varies by sector: energy, transport, telecom\n\nEnergy: Projects must be identified as Projects of Common Interest (PCI)",null,null,null,5350000000,null,null,null,null,"2016-ongoing",null,"First call for proposals launched in 2016 and have been ongoing since\n2019 CEF Transport Blending Facility Call launched in 2019, first cut-off date in December 2019\n2019-2 CEF Telecom Call launched in July 2019, deadline of 14 November ","-","-","-","-","-","-","-","-","-","-","-","-","-","-","-","-","-","-","https://ec.europa.eu/inea/en/connecting-europe-facility","-"]
["COSME Equity Facility for Growth","Link","Other","Electricity efficiency, Heat efficiency and recovery, Carbon capture and storage, Sustainable infrastructure, Renewable energy","EU-wide","The Equity Facility for Growth (EFG) is a window of the Single EU Equity Financial Instrument which supports EU enterprises' growth and research and innovation (R&I) from the early stage, including seed, up to expansion and growth stage.\nEFG – managed by EIF – is part of COSME (Programme for the Competitiveness of Enterprises and Small and Medium-sized Enterprises), an initiative launched by the European Commission.\n\nThrough COSME EFG, EIF invests in  selected funds – acting as EIF’s financial intermediaries –  that provide venture capital and mezzanine finance to expansion and growth stage SMEs, in particular those operating across borders. The fund managers will operate on a commercial basis, to ensure that investments are focused on SMEs with the greatest growth potential.","Equity finance","All sectors","Public, Private","Public: international","1, 2, 3, 4, 5, 6, 7, 8, 9","Link","Eligible recipients must be established and operating in the EU or COSME Associated Countries, Eligible recipients must be established and operating in the EU or COSME Associated Countries\nMore detailed criteria found in Annex II of attachment",null,null,null,null,null,null,null,null,null,null,"Accepting applications by end of September 2020"]
["COSME Loan Guarantee Facility","Link","Other","Electricity efficiency, Heat efficiency and recovery, Electricity efficiency, Heat efficiency and recovery, Carbon capture and storage, Sustainable infrastructure, Renewable energy","EU-wide","Purpose is to facilitate access to debt finance for SMEs by providing guarantees and counter-guarantees, including securitisation of SME debt finance portfolios, to selected financial intermediaries ","Guarantees","All sectors","Public, Private","Public: international","1, 2, 3, 4, 5, 6, 7, 8, 9","Link"," Eligible applicants are financial or credit institutions and loan (debt) funds established and operating in one or more of the EU Member States and COSME Associated Countries; or Guarantee institutions, credit or financial institutions duly authorised to issue guarantees to SMEs according to applicalbe legislation, established and operating in one or more of the EU Member States and COSME Associated Countries\n\nCompanies that can benefit from COSME LGF must be established and operating in one more EU Member States and COSME Associated Countries. Supported SMEs should not be carrying out activities breaching ethical principles or focus on one more EIF restricted sectors. ",null,null,null,null,null,null,null,null,null,null,"Accepting applications by end of September 2020"]
["EBRD Sustainable Energy Financing Facilities","Link ","Cross-cutting R&I: maximising the energy efficiency of cross-sector industrial components in a cost-efficient manner","Electricity efficiency, Renewable energy","EU-Wide","The EBRD established a new financing model in 2004, providing targeted private sector credit lines to local banks. These aimed to 1) reduce energy demand by increasing energy efficiency in the industrial and residential sectors and 2) replace the lost capacity for power generation by financing an increase in renewable energy production. This begain in Bulgaria but spread to 20 countries overall.","Grant/subsidies","All sectors","Private","Public: international","Not known","Link","SEFF finance to the commercial sector typically ranges from a few hundred thousand to a few million euros, most often to support the purchase and installation of equipment, systems or processes. Across the EBRD countries of operations, SEFF finance has supported diverse  projects in virtually all sectors. ","Technical assistance / project development support",null,300,3000000000,null,null,null,null,"2006-ongoing",null,"Running 2004-2014",null,null,null,null,null,null,null,null,null,null,null,null,null,null,null,null,null,null,"https://www.ebrd.com/documents/climate-finance/get-bulgaria.pdf"]
["PolSEFF2","Link","Sector-specific R&I: increasing the cost effectiveness of not yet economically viable technologies","Electricity efficiency, Renewable energy, Sustainable infrastructure","Poland","The Sustainable Energy financing programme in Poland-PolSEFF was created at the initiative of the European Bank for Reconstruction and Development with the support of the European Union. The main objective of the programme was to develop sustainable energy by increasing the use of energy-efficient technologies and renewables in the small and medium-sized enterprises sector.\n\nPolSEFF provides tools for financial institutions to support their decision processes on financing energy efficiency investments in the SME sector and technical advice","Debt financing, Third party financing","All sectors","Public","Public: international","7, 8, 9","Link ","Companies that were eligible for the PolSEFF programme needed to match the following criteria:\nSMEs registered in Poland and at least majority privately owned. Sole proprietors and farmers included\nemployees: 1- 249\nrevenue: up to EUR 50 million or balance sheet assets: up to EUR 43 million\ncompanies that act according to national and EU regulations\nEnergy Service Companies (ESCOs) if their customers are SMEs\nfinancially viable (met the banks's criteria).\n\nProjects eligible for the PolSEFF programme: \nenergy efficiency projects using LEME technologies; the financing value of projects could not exceed EUR 250,000 \ncomplex projects improving energy efficiency based on individual solutions achieving minimum 20% of energy saving; financing value could not exceed EUR 1,000,000*\ninvestments in commercial buildings achieving minimum of 30% of energy saving*\nrenewable energy projects generating a minimim of 3kWh energy per annum per 1 EUR invested*\ninvestments for capacity expansion by suppliers of energy efficient or renewable energy equipment*.\n        * the technical eligibility of the project was qualified by the PolSEFF consultant","Technical assistance / project development support",null,null,null,null,null,null,null,null,null,null,null,null,null,null,null,null,null,null,null,null,null,null,null,null,null,null,null,null,"https://ec.europa.eu/energy/sites/ener/files/seif_warsaw_event_30_nov_2017_proceedings_final.pdf"]
["EU/EBRD Turkish Energy Efficiency and Renewable Energy Support Programme ","N/A","Sector-specific R&I: increasing the cost effectiveness of not yet economically viable technologies","Renewable energy, Electricity efficiency, Sustainable infrastructure","Turkey","In order to increase the efficiency and effectiveness of the support of sustainable energy being provided to Turkey, the EC and the EBRD, in full cooperation of the Government of Turkey, have agreed to establish the EU/EBRD Turkish Energy Efficiency and Renewable Energy Support Programme (hereinafter, referred to as the “Programme”) for \"Enhancement of the Turkish Energy Sector in line with EU energy strategies\". \n\nThe Programme is structured as four distinctive “windows”.\n\nWindow 1 - Financing Facilities and Technical Assistance (the EBRD will provide loans to eligible sub-borrowers in the energy sector. Programmes currently under implementation include TurSEFF, TuREEF and MidSEFF. Programmes under preparation include Municipal Sustainable Energy Credit Line and Energy Efficiency Leasing).\n\nWindow 2 - Direct Lending and Technical Assistance. Programmes under preparation include Sustainable Waste Framework Direct Lending and Corporate Energy Efficiency Audit Framework and Early Stage Geothermal Development Programme.\n\nWindow 3 - Policy Dialogue for the purpose of promoting resource efficiency investments in the private sector and institutional capacity building to address specific weaknesses in the regulatory framework, leading to a significant improvement in the investment environment for resource efficiency across the country.\n\nWindow 4 – Programme Coordination (subject of this Notice). ","Debt financing","All sectors","Public","Public: international","Not known","N/A",null,null,null,null,null,null,null,null,null,null,null,null,null,null,null,null,null,null,null,null,null,null,null,null,null,null,null,null,null,null,"https://www.ebrd.com/work-with-us/procurement/pn-46188.html"]
["Mid-size Sustainable Energy Financing Facility (MidSEFF)","Link","Sector-specific R&I: increasing the cost effectiveness of not yet economically viable technologies","Renewable energy, Electricity efficiency, Heat efficiency and recovery","Turkey","The aim of this EBRD project is to contribute to the development of the Turkish Carbon Market. This includes sharing information related to on-going carbon market developments and supporting the activities and services included within the framework of the Mid-size Sustainable Energy Financing Facility (MidSEFF). The facility is set up to improve energy efficiency and renewable energy measures in Turkey. \n\nThe funding is provided by the EBRD and EIB through Turkish banks for on-lending to private sector borrowers. ","Debt financing, Third party financing","All sectors","Public","Public: international","Not known","Link ","In order to apply to the MidSEFF credit line the Sub-projects must be in compliance with the technical eligibility criteria for each type of investment and with the environmental and social policy requirements as elaborated in the Environmental and Social Policy 2014., In order to apply to the MidSEFF credit line the Sub-projects must be in compliance with the technical eligibility criteria for each type of investment and with the environmental and social policy requirements as elaborated in the Environmental and Social Policy 2014 of the EBRD. \nA Sub-project may be eligible for financing under the Facility if it:\n- leads to an increase in the production of energy from renewable sources or, \n- leads to an increase in resource efficiency, including but not limited to a reduction in primary energy consumption and/or greenhouse gas emissions, final consumption of electricity or fuels, water consumption (m3), or non-recoverable waste (tonnes),\nor\n- leads to an increase of rational energy use, or recycled waste/re-used waste (tonnes)\nand it fulfils the technical eligibility criteria as defined by EBRD.",null,null,71,1500000000,10000000,50000000,null,null,null,null,null,null,null,null,null,null,null,null,null,null,null,null,null,null,null,null,null,null,null,"http://turkishcarbonmarket.com/"]
["Turkey Sustainable Energy Finance Facility (TurSEFF) III","Link","Cross-cutting R&I: maximising the energy efficiency of cross-sector industrial components in a cost-efficient manner","Electricity efficiency, Heat efficiency and recovery, Renewable energy","Turkey","The EBRD has developed a third credit line under the Turkey Sustainable Energy Financing Facility (the \"Facility\" or \"TurSEFF III\"). This will take the form of a framework operation under which credit lines of up to EUR 400 million will be provided by EBRD to Turkish banks (\"Partner Financial Institutions or PFIs\") for on-lending to eligible private and public sector companies to finance resource efficiency (“ResE”) and small-scale renewable energy (“RE”) investments. Co-financing by other International Financial Institutions (\"IFIs\") of up to EUR 100 million additional to EBRD funds may be possible but not confirmed at this time.","Debt financing","All sectors","Public","Public: international","Not known","N/A",null,null,null,null,400000000,null,null,null,null,null,null,null,null,null,null,null,null,null,null,null,null,null,null,null,null,null,null,null,null,null,"https://www.ebrd.com/news/2018/ebrd-boosts-energy-efficiency-in-turkey.html"]
["ESI Fund Financial Instrument: SME Initiative ","Link","Cross-cutting R&I: improving system integration, optimal design, intelligent and flexible operation, including industrial symbiosis to increase energy and resource efficiency","Electricity efficiency, Heat efficiency and recovery, Electricity efficiency, Heat efficiency and recovery, Carbon capture and storage, Sustainable infrastructure, Renewable energy","Bulgaria, Finland, Italy, Malta, Romania, Spain","Stimulates SME financing by providing partial risk cover (loss protection and potential capital relief) of SME loan portfolios, to selected financial intermediaries \nA joint financial instrument of the EC and the EIB Group (the European Investment Bank and European Investment Fund) which aims to stimulate SME financing by providing partial risk cover for SMe loan portfolios of originating financial institutions. Alongside the European Structural and Investment Funds (\"ESIF\") resources contributed by the Member States, the SME Initiative is co-funded by the EU through COSME and/or H2020 resources as well as EIB Group resources. ","Risk sharing facility, Guarantees","All sectors","Public","Public: international","Not known","Link","Entities must be established in Bulgaria, Finland, Italy, Malta, romania, and Spain ",null,null,null,null,null,null,"No"]
["EIC: Fast track to innovation (FTI)","Link","Sector-specific R&I: increasing the cost effectiveness of not yet economically viable technologies","Electricity efficiency, Heat efficiency and recovery, Carbon capture and storage, Renewable energy, Sustainable infrastructure","EU-wide","Similar approach as the SME instrument but for consortia composed of 3 to 5 partners with industrial focus. ","Grant/subsidies","All sectors","Public","Public: international","6","Link","Need to demonstrate that R&D is mature and is market oriented; proposals for funding must be submitted by consortia comprising between 3 and 5 legal entities established in at least 3 different EU Member States or countries associated to H2020. ",null,null,null,null,null,null,null,null,null,null,"Cut-off dates for 2019 and 2020 are in the Horizon 2020 Work Programme:\nOctober 2019, February 2020, June 2020, October 2020 ",null,null,null,null,null,null,null,null,null,null,null,null,null,null,null,null,null,null,"https://ec.europa.eu/easme/sites/easme-site/files/horizon_2020_work_programme_eic_pilot_2018-2020.pdf"]
["EIC: Future & Emerging Technologies (FET)","Link","Sector-specific R&I: increasing the cost effectiveness of not yet economically viable technologies","Electricity efficiency, Heat efficiency and recovery, Carbon capture and storage, Renewable energy, Sustainable infrastructure","EU-wide","Brings together funding for innovative researchers. Aims to open up new markets with the potential for rapid European and global-scale growth","Grant/subsidies","All sectors","Public","Public: international","4, 5, 6","Link","Need to demonstrate science-to-technology breakthrough; at least 3 entities ",null,null,null,null,null,null,null,null,null,null,"Deadline of cut-offs for FET Open are as follows: \nMay 2018, January 2019, September 2019, May 2020\n\nDeadline of cut-offs for FET Proactive are: \nOctober 2019, April 2020 "]
["EIC Pathfinder","Link","Sector-specific R&I: progressing emerging technologies","Electricity efficiency, Heat efficiency and recovery, Carbon capture and storage, Renewable energy, Sustainable infrastructure","EU-wide","Applicants participating in EIC Pathfinder projects are typically visionary scientists, entrepreneurial researchers and, research organisations, start-ups, high-tech SMEs and industrial stakeholders interested in technological research and innovation.\n\nProjects typically involve consortia of researchers and other partners from at least three different countries, but there are also opportunities for individual teams and small consortia (two partners).\n\nGrants of up to 3 to 4 million euro support early stage development of future technologies (e.g. various activities at low Technology Readiness Levels 1-3), up to proof of concept. Pathfinder projects can also receive additional funding for testing the innovation potential of their research outputs.","Grant/subsidies","All sectors","Public","Public: international","1, 2, 3","Link","The Pathfinder Challenges support collaborative research and innovation from \nconsortia or applications from single legal entities (unless stated otherwise in the \nspecific challenge chapter). In case of a consortium your proposal must be submitted \nby the coordinator on behalf of the consortium that includes at least two independent \nlegal entities.\n40 The legal entities may for example be universities, research \norganisations, SMEs, start-ups, natural persons. In the case of monobeneficiary \nprojects, mid-caps and larger companies will not be permitted. "]
["EIC Transition","Link ","Sector-specific R&I: progressing emerging technologies","Electricity efficiency, Heat efficiency and recovery, Carbon capture and storage, Renewable energy, Sustainable infrastructure","EU-wide","Single applicants (SMEs, spin-offs, start-ups, research organisations, universities) or small consortia (max 5 partners) may apply.\n\nAs Transition funding is a new scheme of Horizon Europe, for 2021 it is restricted to applications based on results generated by the following eligible projects:\n\n•EIC Pathfinder projects (including projects funded under EIC pilot Pathfinder, Horizon 2020 FET-Open, FET-Proactive, FET Flagships and FET ERAnet calls)\n•European Research Council (ERC) Horizon 2020 Proof of Concept projects","Grant/subsidies","All sectors","Public","Public: international","4, 5, 6","Link","EIC Transition Challenges fund activities to mature a technology beyond the \nexperimental proof of principle in laboratory and to develop the business case for the \nmarket uptake of the technology in an innovation for a specific application or set of \napplications that address the objectives of the challenge. As such, projects must \naddress the twin development of technological and business aspects. The expected \noutcomes of your EIC Transition Challenge project are a technology that is \ndemonstrated to be effective for its intended application, together with a business \nmodel and business plan for its development to market."]
["EIC Accelerator","Link ","Sector-specific R&I: progressing emerging technologies","Electricity efficiency, Heat efficiency and recovery, Carbon capture and storage, Renewable energy, Sustainable infrastructure","EU-wide","The EIC Accelerator supports individual Small and Medium Enterprises (SMEs), in particular Startups and spinout companies to develop and scaleup game-changing innovations. In some cases small mid-caps (up to 500 employees) are supported.\n\nThe EIC Accelerator provides substantial financial support with:\n\ngrant funding (non-dilutive) of up to €2.5 million for innovation development costs,\ninvestments (direct equity investments) of up to €15 million managed by the EIC Fund for scale up and other relevant costs.\nIn addition, EIC selected companies receive coaching, mentoring, access to investors and corporates, and many other opportunities as part of the EIC community.","Grant/subsidies, Equity finance","All sectors","Public","Public: international","1, 2, 3, 4, 5, 6","Link","The EIC Accelerator Challenges supports companies (principally start-ups and SMEs) to \nscale up high impact innovations with the potential to create new markets or disrupt \nexisting ones in identified areas of strategic relevance. Like EIC Accelerator Open , the EIC Accelerator Challenges focus on innovations building on scientific \ndiscovery or technological breakthroughs (‘deep tech’) and where significant funding \nis needed over a long timeframe before returns can be generated (‘patient capital’). \nThe EIC Accelerator Challenges is open to innovations in the specific fields of \ntechnology or application described by the specific challenges.\nHowever, innovations that harm the environment or social welfare or that are designed \nprimarily for military applications will not be supported."]
["EIT KICS (Raw materials, climate, Innoenergy)","Link","Sector-specific R&I: progressing emerging technologies","Electricity efficiency, Heat efficiency and recovery, Renewable energy","EU-wide","The EIT’s Knowledge and Innovation Communities (Innovation Communities) are partnerships that bring together businesses, research centres and universities. They allow:\n•innovative products and services to be developed in every area imaginable, including climate change, healthy living and active ageing\n•new companies to be started\n•a new generation of entrepreneurs to be trained","Grant/subsidies","All sectors","Public, Private","Public: international","1, 2, 3, 4, 5, 6, 7, 8, 9","Link","After the admissibility check, a proposal will only be considered eligible if it complies with the following eligibiltiy conditions:\n- The proposed KIC must contain at least three independent partner organisations established in at least three different Member States\n- At least two third of the partner organisations forming the propsed KIC are established in Member States\n- The proposed KIC includes at least one higher education institution and one private company \n- The proposal must be submitted by a partnerhsip containing a maximum of 50 partners","Technical assistance / project development support, Capacity building assistance",null,null,2350000000,null,null,"Yes"]
["ELENA - the European Local ENergy Assistance facility","Link","Cross-cutting R&I: maximising the energy efficiency of cross-sector industrial components in a cost-efficient manner","Sustainable infrastructure, Electricity efficiency, Carbon capture and storage, Heat efficiency and recovery","EU-wide","A grant aid initiative to help local and regional authorities make investments in energy efficiency and renewable energy. The facility is designed to help cities and regions, through the provision of technical assistance, structure and implement projects in the most efficient way so they can attract outside finance.","Grant/subsidies","All sectors","Public","Public: international","7, 8, 9","Link","Typically, ELENA supports programmes above €30 million with a 3-year implementation peroid for energy efficiency and 4-year for urban transport and mobility \nProjects must be >30 M€ over 3-4 years. \nNon-eligibile: stand-alone RES projects and long distance Transport Infrastructure. Technical Assistance provider has to be accepted by EIB","Technical assistance / project development support",null,null,"€ 50.000.000 per year",30000000,null,null,null,null,null,null,null,null,null,null,null,null,null,null,null,null,null,null,null,null,null,null,"Up to 90% funding",null,"https://www.eib.org/en/products/advising/elena/index.htm"]
["Eurostars","Link ","Sector-specific R&I: progressing emerging technologies","Electricity efficiency, Heat efficiency and recovery, Carbon capture and storage, Renewable energy, Sustainable infrastructure","EU-wide","The programme is co-funded by Eureka Member Countries and the EU H2020 Framework Programme. \nEurostars is the only European funding programme to be specifically dedicated to support R&D-performing SMEs in their innovative R&D projects. With its bottom-up approach, it stimulates international collaborative research and innovation projects that will be rapidly commercialised. A Eurostars project must have a civilian purpose and be aimed at the development of a new product, process or service","Grant/subsidies","All sectors","Public","Public: international","7, 8, 9","Link","Eurostars focuses on SMEs, especially R&D performing SMEs. They must be the main project partner. This restriction doesn’t apply to the other partners in the consortium which mean that Universities or Research organisations can join a Eurostars project.\nThe budget (excluding subcontracting) of the R&D-performing SME is equal to at least 50.00% of the total project budget. In case there are multiple R&Dperforming SMEs, their combined total participant budgets (excluding subcontracting) must equal at least 50.00 % of the total project budget.\nA project consortium must have at least 2 different partners (independent legal entities) from 2 different Eurostars countries. ",null,null,991,"€ 673.000.000 in estimated public funding",null,null,null,null,null,"Project must be completed in 36 months or fewer.","The next cut-off deadline is Feb. 13, 2020"]
["European Energy Efficiency Fund (EEEF)","Link","Sector-specific R&I: increasing the cost effectiveness of not yet economically viable technologies","Electricity efficiency, Renewable energy","EU-wide","Provides technical assistance to public authorities (funded via ELENA)\nProvides loans (or quzasi equity) mostly to public-private partnerships","Market-based financing ","All sectors","Public","Public: international","7, 8","Link","eeef targets investments in the member states of the EU. Eligible projects are from project developers, energy service companies (ESCOs), small scale renewable energy and energy efficiency service and supply companies that serve energy efficiency and renewable energy markets in the target countries. ","Technical assistance / project development support",null,null,null,5000000,25000000]
["European Funds for Strategic Investment (EFSI)","Link","Cross-cutting R&I: maximising the energy efficiency of cross-sector industrial components in a cost-efficient manner","Electricity efficiency, Heat efficiency and recovery, Sustainable infrastructure, Renewable energy","EU-wide","EFSI is an initiative launched jointly by the EIB Group - the European Investment Bank and European Investment Fund - and by the European Commission to help overcome the current investment gap in the EU. EFSI is one of the three pillars of the Investment Plan for Europe that aims to revivie investment in strategic projects around the continent to ensure that money reaches the local economy. ","Equity finance, Guarantees, Debt financing","All sectors","Public","Public: international","6, 7, 8","Link","In particular, EFSI projects need to be:\nEconomically and technically sound\nIn at least one of the EFSI eligible sectors as defined in Article 9 of the EFSI Regulation, In particular, EFSI projects need to be:\nEconomically and technically sound\nIn at least one of the EFSI eligible sectors as defined in Article 9 of the EFSI Regulation\nContributing to eU objectives, including sustainable growth and employment\nMature enough to be bankable\nPriced in a manner commensurate with the risk taken ",null,null,null,26000000000]
["European Investment Project Portal (EIPP)","Link","Other","Electricity efficiency, Heat efficiency and recovery, Carbon capture and storage, Renewable energy, Sustainable infrastructure","EU-wide","Project promoters based in the EU can register their project to boost visibility to potential investors","Third party financing","All sectors","Private","Private: investor","6, 7, 8","N/A","Not specified, but eligible projects are those with (some) results/innovation oriented to market in the fields of: Knowledge and digital infrastructure; social infrastructure; energy union; resource and environment; transport; industry for SMEs and Mid Caps "]
["Cohesion Fund","Link ","Cross-cutting R&I: maximising the energy efficiency of cross-sector industrial components in a cost-efficient manner","Heat efficiency and recovery, Electricity efficiency, Carbon capture and storage, Renewable energy, Sustainable infrastructure","Bulgaria, Croatia, Cyprus, Czechia, Estonia, Greece, Hungary, Lithuania, Latvia, Malta, Poland, Portugal, Romania, Slovakia, Slovenia","The investment priorities for 2014-2020 have been set out in a Partnership Agreement with the European Commission. The\npriorities include:\n● Raising competitiveness and sustainability of the economy.\n● Creating a high quality research and innovation system that will allow reaching the EU2020 target of 1.5 % GDP\nexpenditure on R&I.\n● Developing sustainable and environmental friendly modes of transport along Trans-European Networks (TEN-T).\n● Stimulating integrated urban development in priority areas within selected cities in Bulgaria.\n● Improving management of water and other natural resources, including biodiversity and Natura 2000, closing the gap\nwith the acquis and increasing the efficiency of water and waste management.\n● Raising the employment population aged 20-64 to 76%; reducing the level of unemployed youths aged 15-29 to 7%;\nachieving an employment rate among older persons (aged 55–64) of 53%.\n● Reducing the share of students dropping out of the educational system to 11%; raising the share of persons aged 30-\n34 with completed higher or equivalent education to 36%.\n● Strengthening the capacity of public administration and the judiciary and promoting good governance.","Grant/subsidies","All sectors","Public","Public: international","1, 2, 3, 4, 5, 6, 7, 8, 9","Link ","For the 2014-2020 period, the Cohesion Fund concerns Bulgaria, Croatia, Cyprus, the Czech Republic, Estonia, Greece, Hungary, Latvia, Lithuania, Malta, Poland, Portugal, Romania, Slovakia and Slovenia. \nThe Cohesion Fund allocates a total of € 63.4 billion to activities under the following categories: \ntrans-European transport networks, notably priority projects of European interest as identified by the EU. The Cohesion Fund will support infrastructure projects under the Connecting Europe Facility; \nenvironment: here, the Cohesion Fund can also support projects related to energy or transport, as long as they clearly benefit the environment in terms of energy efficiency, use of renewable energy, developing rail transport, supporting intermodality, strengthening public transport, etc. ","Financial assistance",null,"Unknown ",63400000000,null,null,null,null,"2014-2020",null,"Running 2014-2020",null,null,null,null,null,null,null,null,null,null,null,null,null,null,null,null,null,null,"https://ec.europa.eu/regional_policy/sources/information/cohesion-policy-achievement-and-future-investment/factsheet/bulgaria_en.pdf","Investment figure refers to all projects, not only these relevant to SET."]
["Europe Regional Development Fund","Link","Cross-cutting R&I: improving system integration, optimal design, intelligent and flexible operation, including industrial symbiosis to increase energy and resource efficiency","Electricity efficiency, Heat efficiency and recovery, Renewable energy, Sustainable infrastructure","EU-wide","The ERDF focuses its investments on several key priority areas:\n- Innovation and research\n- The digital agenda\n- Support for SMEs\n- The low-carbon economy ","Grant/subsidies","All sectors","Public","Public: international","1, 2, 3, 4, 5, 6, 7, 8, 9","Link","Eligibility criteria include GDP per capita",null,null,null,null,null,null,null,null,null,null,null,null,null,null,null,null,null,null,null,null,null,null,null,null,null,null,null,null,null,"https://eur-lex.europa.eu/legal-content/EN/TXT/?uri=CELEX:32013R1301"]
["National Regional Fund Program","Link","Cross-cutting R&I: maximising the energy efficiency of cross-sector industrial components in a cost-efficient manner","Electricity efficiency, Renewable energy","Sweden","The National Regional Fund programme is a new part of the European Structural Fund programme for Sweden and runs from 2014-2020. The Swedish Energy Agency receives a total of SEK 80 million per year for the investment in energy efficiency in SMEs during the period.","Grant/subsidies","All sectors","Public","Public: national","Not known","Link ",null,null,null,null,51912000]
["PO SEUR - Operational Programme for Sustainability and Efficient Use of Resources","Link","Cross-cutting R&I: improving system integration, optimal design, intelligent and flexible operation, including industrial symbiosis to increase energy and resource efficiency","Electricity efficiency, Heat efficiency and recovery, Renewable energy, Sustainable infrastructure","Portugal"," Established through an Execution Decision from the European Commission on December 16, 2014 and is one of the 16 programmes created for the operationalization of Portugal 2020 Strategy (a partnership agreement established between Portugal and the European Commission that gathers the action of 5 European Structural and Investment Funds - ESIF, Cohesion Fund, ESF, EAFRD and EMFF - in which the programming principles are laid down and mark the economic, social and territorial development policy to be promoted in Portugal between 2014 and 2020)., Established through an Execution Decision from the European Commission on December 16, 2014 and is one of the 16 programmes created for the operationalization of Portugal 2020 Strategy (a partnership agreement established between Portugal and the European Commission that gathers the action of 5 European Structural and Investment Funds - ESIF, Cohesion Fund, ESF, EAFRD and EMFF - in which the programming principles are laid down and mark the economic, social and territorial development policy to be promoted in Portugal between 2014 and 2020).","Tax rebates and exemptions, Grant/subsidies","All sectors","Public","Public: international","Not known","Link ",null,null,null,null,757000000,null,null,null,null,null,null,null,null,null,null,null,null,null,null,null,null,null,null,null,null,null,null,null,null,null,"https://poseur.portugal2020.pt/en/investment-axes/axis-i/"]
["Fuel Cells and Hydrogen Joint Undertaking (FCH JU)","Link","Cross-cutting R&I: maximising the energy efficiency of cross-sector industrial components in a cost-efficient manner","Renewable energy","EU-wide","The Fuel Cells and Hydrogen Joint Undertaking (FCH JU) is a unique public private partnership supporting research, technological development, and demonstration (RTD) activities in fuel cell and hydrogen energy technologies in Europe ","Grant/subsidies","All sectors","Public, Private","Public: international, Other","2, 3, 4, 5, 6","Link","Projects are assessed based on quality, implementation, and impact , Projects are assessed based on quality, implementation, and impact \nProjects must not request more than the maximum funding designated for its topic","Technical assistance / project development support",null,null,1330000000,null,null,null,null,"2014-2020 (second phase confirmed for 2021-2024)",null,null,null,null,null,null,null,null,null,null,null,null,null,null,null,null,null,null,null,null,"https://www.fch.europa.eu/sites/default/files/6.%20InfoDay%202019%20-%20H2020%20rules%20-%20Lionel%20%28ID%205160346%29%20%28ID%205308910%29.pdf"]
["H2020: INEA Grants for energy and transport ","Link","Cross-cutting R&I: maximising the energy efficiency of cross-sector industrial components in a cost-efficient manner","Electricity efficiency, Carbon capture and storage, Renewable energy, Sustainable infrastructure","EU-wide","Provides grants to innovative projects in the field of transport and energy. Support technology research and development in line with the EC priorities. ","Grant/subsidies","All sectors","Public","Public: international","6, 7, 8","Link","Varies per topic area.",null,null,480,5300000000,null,null,null,null,null,null,null,null,null,null,null,null,null,null,null,null,null,null,null,null,null,null,null,null,null,"https://ec.europa.eu/inea/en/horizon-2020"]
["ERA-NET","Link","Cross-cutting R&I: improving system integration, optimal design, intelligent and flexible operation, including industrial symbiosis to increase energy and resource efficiency","Electricity efficiency, Heat efficiency and recovery, Carbon capture and storage, Renewable energy, Sustainable infrastructure","EU-wide","ERA-NET under Horizon 2020 is a funding instrument designed to support public-public partnerships in their\npreparation\nestablishment of networking structures\ndesign and implementation\ncoordination of joint activities \nThe instruments mainly 'tops-up' funding for single joint calls and transnational actions.","Grant/subsidies","All sectors","Public","Public: international","1, 2, 3, 4, 5, 6, 7, 8, 9","Link","At least three legal entities. Each of the three must be established in a different EU Member State or Horizon 2020 associated country. All three legal entities must be independent of each other.   Participants in ERA-NET Cofund actions must be legal entities owning or managing public research and innovation programmes",null,null,null,null,null,null,"Yes"]
["Horizon Europe","Link","Cross-cutting R&I: improving system integration, optimal design, intelligent and flexible operation, including industrial symbiosis to increase energy and resource efficiency","Research and innovation, Electricity efficiency, Heat efficiency and recovery, Renewable energy, Carbon capture and storage, Sustainable infrastructure","EU-wide","2021-2027 EU Research Framework Programme. Several relevant areas of intervention (e.g. 3.2.7. Circular Industries; 3.2.8. Low-Carbon and Clean Industries, 4.2.4. Buildings and Industrial Facilities in Energy Transition)","Grant/subsidies","All sectors","Public","Public: international","1, 2, 3, 4, 5, 6, 7","Link","Various, dependent on specific grant scheme","-",null,0,100000000000,null,null,null,null,"2021-2027",null,"Planned to 2027","-","-","-","-","-","-","-","-","-","-","-","-","-","-","-","-","Up to 100% project costs","-","https://ec.europa.eu/info/designing-next-research-and-innovation-framework-programme/what-shapes-next-framework-programme_en","-"]
["Innovation Fund","Link","Sector-specific R&I: increasing the cost effectiveness of not yet economically viable technologies","Sustainable infrastructure, Electricity efficiency, Carbon capture and storage, Heat efficiency and recovery, Renewable energy","EU-wide","The Innovation fund will support low-carbon innovative demonstration projects in energy intensive industries, innovative renewables, energy storage, carbon capture, use and storage (CCUS). The Fund provides predominantly grants, covering up to 60% of relevant costs, out of which 40% up-front financing based on pre-defined milestones before the whole project is up and running. Can provide funding of about €10 billion depending on the carbon price for the period 2020-2030. Funded by allowances from the EU Emissions Trading System.","Grant/subsidies","All sectors","Public","Public: international","7, 8, 9","Link","Projects will be selected based on a competitive selection process, via calls for propsals, on the following criteria:\n\nEffectiveness of GHG avoidance\nDegree of innovation\nProject viability and maturity\nScalability\nCost efficiency \n\nThe selection criteria will be weighted according to their relative importance","-",null,0,10000000000,null,null,null,null,"2020-2030",null,"First call launched in 2020, followed by regular calls until 2030","-","-","-","-","-","-","-","-","-","-","-","-","-","-","-","Flexible cash flow","Up to 60% of funds covered","Effectiveness of greenhouse gas emissions avoidance\nDegree of innovation\nProject viability and maturity\nScalability\nCost efficiency (cost per unit of performance)","https://ec.europa.eu/clima/policies/innovation-fund_en","-"]
["Innovation Radar","Link","Other","Electricity efficiency, Heat efficiency and recovery","EU-wide","The Innovation Radar is an initative of the European Commission focused on the identification of high potential innovations and the key innovators behind them in FP7, CIP and Horizon 2020 projects. It supports innovators by suggesting a rnage of targeted actions to assist them in fulfilling their potential in the market. It is an initiative that involves:\n- Assessing the maturity of innovations developed within the FP7 and H2020 projects and identifying high potential innovators and innovations\n- Providing guidance during the project duration in terms of the most appropriate steps to reach the market\n- Supporting innovators through EU (and non-EU) funded entrepreneurship initatives to cover specific needs concerning networking, access to finance, Intellectual Property Rights, etc. ","Third party financing","All sectors","Public","Public: international","3, 4","Link","The Innovation Radar covers all ICT research and/or innovation projects that the Commission has launched under H2020. It also covers ICT projects launched under FP7 and CIP. Therefore, innovators participating in one of these projects can benefit. "]
["InnovFin","Link","Sector-specific R&I: increasing the cost effectiveness of not yet economically viable technologies","Electricity efficiency, Heat efficiency and recovery, Carbon capture and storage, Renewable energy, Sustainable infrastructure","EU-wide","Provides loans, loan guarantees or equity-type financing to innovative demonstration projects in the fields of energy system transformation, including but not limited to renewable energy technologies, smart energy systems, energy storage, carbon capture and storage or carbon capture and use, helping them to bridge the gap from demonstration to commercialisation. The product is deployed directly by the EIB.","Blending instruments, Debt financing, Equity finance, Guarantees, Risk sharing facility","All sectors","Public, Private","Public: international, Public: international, Private: investor","1, 2, 3, 4, 5, 6, 7, 8, 9","Different eligibility criteria for type of financing. Please see links below, Different eligibility criteria for type of financing. Please see links for sub-programmes","Targeted towards small and medium-sized entreprises (SMEs) or mid-caps which are fast-growing and/or innovation-driven",null,null,null,"-",null,null,null,null,null,null,null,null,null,null,null,null,null,null,null,null,null,null,null,"The (Counter-) Guarantee Fee rate is 0.50% per annum with respect to SMEs and 0.80%\nper annum in the case of Small Mid-Caps",null,null,null,null,null,"https://www.eib.org/en/products/blending/innovfin/index.htm"]
["InnovFin Advisory","Link","Sector-specific R&I: increasing the cost effectiveness of not yet economically viable technologies","Electricity efficiency, Heat efficiency and recovery, Carbon capture and storage, Renewable energy, Sustainable infrastructure","EU-wide","Purpose is to improve the bankability and investment-readiness of large, complex, innovative projects that need substantial long-term investments. \nInnovFin Advisory guides its clients on how to structure their R&I projects in order to improve their access to finance","Third party financing","All sectors","Public","Public: international","8, 9","Link","Projects > EUR 15 million R&I Investment, fit the policy objectives of H2020 and not yet be mature for financing appraisal ","Technical assistance / project development support, Capacity building assistance",null,null,null,15000000]
["InnovFin Business Angels","Link","Sector-specific R&I: increasing the cost effectiveness of not yet economically viable technologies","Electricity efficiency, Heat efficiency and recovery, Carbon capture and storage, Renewable energy, Sustainable infrastructure","EU-wide","EIF provides equity investments (up to 50% or 50 m€) into funds managed or pooled by business angels, or co-investment funds aiming at co-investing with business angels on a systematic basis. ","Equity finance","All sectors","Public, Private","Public: international, Private: investor","Not known","Link ","Eligible enterprises are those established or active in the EU or H2020 associated Countries operating in the sectors covered by H2020. "]
["InnovFin Corporate Research Equity","Link","Sector-specific R&I: increasing the cost effectiveness of not yet economically viable technologies","Electricity efficiency, Heat efficiency and recovery, Carbon capture and storage, Renewable energy, Sustainable infrastructure","EU-wide","InnovFin Corporate Research Equity increases the supply of equity-type financing under the European Fund for Strategic Investments (EFSI) to large research and innovation (R&I) programmes and to innovative large mid-caps and small or medium-sized enterprises (SME). It addresses the market gap for large equity-type investment in the form of contingent loans, in particular with mid- to long-term repayments profile that are directly linked to product development cycles. ","Equity finance, Blending instruments","All sectors","Public, Private","Public: international, Public: international, Private: investor","4, 5, 6","Link","Increases the supply of equity-type financing under the European Fund for Strategic Investments (EFSI) to large research and innovation (R&I) programmes and to innovative large mid-caps and small or medium-sized enterprises (SME). It addresses the market gap for large equity-type investment in the form of contingent loans, in particular with mid- to long-term repayments profile that are directly linked to product development cycles. ",null,null,null,null,75000000]
["InnovFin Demo projects","Link","Sector-specific R&I: increasing the cost effectiveness of not yet economically viable technologies","Renewable energy, Carbon capture and storage, Sustainable infrastructure","EU-wide","Purpose is to provide direct loans or quasi-equity financing (EUR 7.5 - 75 million); or guarantee to Financial Intermediaries, supporting innovative demonstration projects to bridge the gap from demonstration to commercialisation (\"valley of death\"). ","Debt financing, Blending instruments, Third party financing","All sectors","Public, Private","Public: international, Private: investor","7, 8","Link","Eligible projects must contribute to to the energy transition, and should demonstrate the commercial viability of pre-commerical technologies or services, or enhance the competitiveness of manufacturing processes. "]
["InnovFin Emerging Innovators","Link","Sector-specific R&I: increasing the cost effectiveness of not yet economically viable technologies","Electricity efficiency, Heat efficiency and recovery, Carbon capture and storage, Renewable energy, Sustainable infrastructure","EU-wide","EIB for direct financing starting at EUR 25m or through a financial intermediary for financing starting at EUR 7.5 million","Equity finance, Debt financing","All sectors","Public, Private","Public: international, Public: international, Private: investor","4, 5, 6","Link","Companies that can benefit are research-based and innovative SMEs and small mid-caps established and operating in one or several EU Member States and Horizon 2020 Associated Countries, Eligible entities are enterprises operating in innovative sectors covered by H2020, located or active in the EU or H2020 Associated Countries. ",null,null,null,null,7500000,null,null,null,null,null,null,null,null,null,null,null,null,null,null,null,null,null,null,null,null,null,null,null,null,"https://www.eurekanetwork.org/"]
["InnovFin Equity","Link","Sector-specific R&I: increasing the cost effectiveness of not yet economically viable technologies","Electricity efficiency, Heat efficiency and recovery, Carbon capture and storage, Renewable energy, Sustainable infrastructure","EU-wide","Via InnovFin Equity, EIF provies equity investments and co-investments to or alongside funds focusing on companies in their pre-seed, seed, and start-up phases operating in innovative sectors covered by Horizon 2020","Equity finance","All sectors","Public, Private","Public: international, Public: international, Private: investor","1, 2, 3, 4, 5, 6","Link","Eligible entities are enterprises operating in innovative sectors covered by H2020, located or active in the EU or H2020 Associated Countries. \nVia InnovFin Equity, EIF provides equity investments and co-investments to or alongside funds focusing on companies in their pre-seed, seed, and start-up phases operating in innovative sectors covered by Horizon 2020, including life sciences, clean energy and high-tech. ",null,null,45,"€ 4.000.000.000- € 5.000.000.000",null,null,null,null,"Applications can be made by September 2020 ","15-20 years",null,null,null,null,null,null,null,null,null,null,null,null,null,null,null,null,null,null,null,"https://www.eif.org/what_we_do/equity/single_eu_equity_instrument/innovfin-equity/innovfin_equity_frequently_asked_questions.pdf"]
["InnovFin Fund-of-Funds","Link","Sector-specific R&I: increasing the cost effectiveness of not yet economically viable technologies","Electricity efficiency, Heat efficiency and recovery, Carbon capture and storage, Renewable energy, Sustainable infrastructure","EU-wide","Provides equity injection in underlying venture and multi-stage funds with significant early stage focus. ","Equity finance","All sectors","Public, Private","Public: international, Private: investor","Not known","Link","EIF seeks to invest in fund-of-funds that have a geographical coverage of at least 4 participating countries, and that focus on early stage venture capital or have a balanced strategy with a significant arget allocation to early stage. "]
["InnovFin MidCap Guarantee","Link","Sector-specific R&I: increasing the cost effectiveness of not yet economically viable technologies","Electricity efficiency, Heat efficiency and recovery, Carbon capture and storage, Renewable energy, Sustainable infrastructure","EU-wide","Loans between EUR 7.5m and EUR 50m for a specific project acked by a guarantee to improve access to finance","Debt financing, Guarantees, Third party financing","All sectors","Public, Private","Public: international, Public: international, Private: investor","Not known","Link","Eligible entities must meet mid-cap criteria found in Annex II of the attachment. ",null,null,null,null,7500000,50000000]
["InnovFin Science","Link","Sector-specific R&I: increasing the cost effectiveness of not yet economically viable technologies","Electricity efficiency, Heat efficiency and recovery, Carbon capture and storage, Renewable energy, Sustainable infrastructure","EU-wide","Purpose is to partly finance R&I activities, R&I infrastructures, activities eligible under the EUREKA network or the European Research Area (ERA) as well as the Euratom fission programme implemented by research instituions, universities, and research organisations","Equity finance, Debt financing","All sectors","Public, Private","Public: international, Public: international, Private: investor","Not known","Link","All R&I activities, R&I investments and R&I infrastructures under the Horizon 2020 programme, as well as R&I activities under the Euratom fission programme implemented by research institutes/organisations or universities are eligible to receive InnovFin Science funding",null,null,null,null,25000000,null,null,null,null,"6 months",null,null,null,null,null,null,null,null,null,null,null,null,null,null,null,null,null,null,null,"https://www.eib.org/attachments/thematic/innovfin_science_en.pdf"]
["InnovFin SME Guarantees","Link","Sector-specific R&I: increasing the cost effectiveness of not yet economically viable technologies","Electricity efficiency, Heat efficiency and recovery, Carbon capture and storage, Renewable energy, Sustainable infrastructure","EU-wide","Provides loans, financial leases, mini bonds, subordinated debt between EUR 25 000 and EUR 7.5 million backed by a guarantee to fast-growing enterprises improve access to finance","Debt financing, Blending instruments, Guarantees, Third party financing","All sectors","Public, Private","Public: international, Public: international, Private: investor","Not known","Link","Eligible applicants are financial, credit institutions or loan (debt) funds duly authorised to carry out lending or leasing activities to SMEs according to applicable legislation, and established and operating in one or more EU Member States and Horizion 2020 Associated Countries; or guarantee schemes, guarantee institutions or other credit or financial institutions duly authorised to issue guarantees to SMEs according to applicable legislation, establsihed and operating in one or more EU Member States and Horizon 2020 Associated Countries \n\nCompanies that can benefit are research-based and innovative SMEs and small mid-caps established and operating in one or several EU Member States and Horizon 2020 Associated Countries, Eligible entities are enterprises operating in innovative sectors covered by H2020, located or active in the EU or H2020 Associated Countries. ",null,null,null,null,25000,7500000]
["InnovFin Technology Transfer","Link","Sector-specific R&I: increasing the cost effectiveness of not yet economically viable technologies","Electricity efficiency, Heat efficiency and recovery, Carbon capture and storage, Renewable energy, Sustainable infrastructure","EU-wide","Provides equity financing to support the process of transforming the results of research and development into marketable products and services (\"technology transfer\")\n","Equity finance","All sectors","Public, Private","Public: international, Private: investor","3, 4, 5, 6, 7, 8","Link","Pre-seed / proof of concept stage (TRL 3 – 6), project financing stage and seed stage (TRL 7 – 8) operating in innovative sectors covered by H2020, located or active in the EU or H2020 Associated Countries",null,null,null,null,null,null,null,null,null,null,"Applications can be made by 30 September 2020 at the latest"]
["InnovFin Thematic Investment Platforms ","Link","Sector-specific R&I: increasing the cost effectiveness of not yet economically viable technologies","Electricity efficiency, Heat efficiency and recovery, Carbon capture and storage, Renewable energy, Sustainable infrastructure","EU-wide","InnovFin Thematic Investment Platforms will catalyse third-party financing for thematic areas, such as the circular bioeconomy. The platforms will provide access to finance via debt or equity-type products to innovative projects in specific thematic areas and will be managed by financial intermediaries and fund managers selected through open calls for expression of interest. ","Third party financing","All sectors","Public, Private","Public: international, Private: investor","Not known","Link","Vary by thematic area "]
["InnovFin Venture Capital","Link","Sector-specific R&I: increasing the cost effectiveness of not yet economically viable technologies","Electricity efficiency, Heat efficiency and recovery, Carbon capture and storage, Renewable energy, Sustainable infrastructure","EU-wide","Provides equity financing to enterprises with high growth potential often in exchange of ownership shares. Venture capitalist typically invest third party money pooled in funds.","Equity finance","All sectors","Public, Private","Public: international, Private: investor","Not known","Link","Under InnovFin Equity, EIF provides equity investments and co-investments to or alongside funds focusing on the early stage financing of enterprises. That operate in innovative sectors covered by Horizon 2020, and that are located or active in the EU or Horizon 2020 Associated Countries (Participating Countries).  In this way, InnovFin Equity supports micro, small or mediumsized enterprises (SMEs) and social enterprises which play a crucial role in promoting innovation and the creation of growth and employment, but which face difficulties in accessing finance., Under InnovFin Equity, EIF provides equity investments and co-investments to or alongside funds focusing on the early stage financing of enterprises. That operate in innovative sectors covered by Horizon 2020, and that are located or active in the EU or Horizon 2020 Associated Countries (Participating Countries). \nIn this way, InnovFin Equity supports micro, small or mediumsized enterprises (SMEs) and social enterprises which play a crucial role in promoting innovation and the creation of growth and employment, but which face difficulties in accessing finance.",null,null,null,null,null,null,null,null,null,null,"Applications can be made by 30 September 2020 at the latest"]
["InvestEU","Link","Cross-cutting R&I: improving system integration, optimal design, intelligent and flexible operation, including industrial symbiosis to increase energy and resource efficiency","Electricity efficiency, Heat efficiency and recovery, Renewable energy, Sustainable infrastructure","EU-wide","The InvestEU Programme will bring together under one roof the multitude of EU financial instruments currently available to support investment in the EU and it consists of the InvestEU Fund, the InvestEU Advisory Hub and the InvestEU Portal. The InvestEU Fund will mobilise public and private investment through an EU budget guarantee of EUR 38 billion that will back the investment projects of financial partners such as the European Investment Bank (EIB) Group and other potential implementing partners, and increase their risk-bearing capacity. The InvestEU Fund will support four policy areas: sustainable infrastructure; research, innovation and digitisation; small and medium-sized businesses; and social investment and skills. The InvestEU guarantee is expected to mobilise EUR 650 billion investments. It is proposed that 30% of this overall budget will contribute to climate objectives.","Guarantees","All sectors","Public","Public: international","9","Link","The eligibility criteria are defined in the Financial Regulation. InvestEU projects must:\n- Address market failures or investment gaps and be economically-viable\n- Need EU backing in order to get off the ground\n- Achieve a multiplier effect and where possible crowd-in private investment\n- Help meet EU policy objectives","Technical assistance / project development support",null,null,38000000000,null,null,null,"State aid rules are essential to ensure effective competition, so that consumers and businesses get fair prices and wider choice in the Single Market. At the same time, in order to match our InvestEU objectives to address market failures and mobilise private investment, it has to be easy to link up Member State money - which may entail State aid and be subject to State aid rules - with EU funds managed centrally by the Commission, which do not constitute State aid.\nTo further streamline the State aid approval process for such joint funding, the Commission has proposed today to amend one of the Council Regulations governing EU State aid control, which now has to be approved by the Council. If adopted, the proposed extension of this Regulation would allow the Commission to exempt Member State funding that is channelled through the InvestEU Fund or supported by the InvestEU Fund from the requirement to notify such interventions to the Commission prior to their implementation. The funding from Member States would be declared compatible with EU State aid rules, as long as certain clear conditions are fulfilled. The Commission proposal thus ensures that State aid rules can help facilitate a seamless deployment of the InvestEU fund. This continues the spirit of the Juncker Commission, which has already made sure that 97% of state aid can be implemented without any involvement of the Commission.","2021-2027",null,"Will run between 2021 and 2027\nIn addition to an annual report, the use of the EU guarantee will be evaluated through an interim evaluation by September 2025 and a final evaluation. ","-","-","-","-","-","-","-","-","-","-","-","-","-","-","-","-","40% guarantee","-","https://eur-lex.europa.eu/legal-content/EN/TXT/HTML/?uri=CELEX:52018PC0439&from=EN\n","EU budget 15.2bn to guarantee 38bn "]
["LIFE","Link","Sector-specific R&I: increasing the cost effectiveness of not yet economically viable technologies","Electricity efficiency, Heat efficiency and recovery, Renewable energy","EU-wide","The LIFE programme is divided into two sub-programmes, one for environment and one for climate action. In terms of emission climate-neutrality, it provides action grants for best practice, pilot and demonstration projects that contribute to the reduction of GHGs, looking for technologies and solutions that are ready to be implemented in close-to-market conditions, at industrial or commercial scale, during the project duration.","Grant/subsidies, Debt financing, Equity finance","All sectors","Public","Public: international","7, 8, 9","Link","Anyone registered in the EU: private entities, public bodies, and NGOs may apply\nProjects must have sustainable and transferrable results and offer EU added value","Technical assistance / project development support",null,"200/year",3400000000,null,null,"Yes","Larger-scale Integrated Projects are required to coordinate complementary funding from private, national, or other EU sources","Next call for proposals in September 2019",null,null,null,null,null,null,null,null,null,null,null,null,null,null,null,null,null,null,"Up to 55% funding",null,"https://ec.europa.eu/easme/en/life\nhttps://ec.europa.eu/easme/en/news/apply-now-life-funding"]
["PF4EE (Private Finance for Energy Efficiency) - BPI/EIB Energy Efficiency Credit Line","Link","Cross-cutting R&I: improving system integration, optimal design, intelligent and flexible operation, including industrial symbiosis to increase energy and resource efficiency","Electricity efficiency","EU-wide","PF4EE is managed by EIB and supported by LIFE. Supports investments in energy efficiency","Debt financing, Risk sharing facility","All sectors","Public, Private","Public: international, Private: bank","Not known","Link ","Selected sectors only for certain types of investment in emerging technologies",null,null,null,480000000,null,null,null,null,"2014-ongoing",null,null,null,null,null,null,null,null,null,null,null,null,null,null,null,null,null,null,null,null,"https://www.bancobpi.pt/empresas/financiamento/linhas-de-apoio/linha-bpi/bei-eficiencia-energetica"]
["Marguerite Fund II","Link","Sector-specific R&I: progressing emerging technologies","Renewable energy, Sustainable infrastructure","EU-wide","Pan-European equity fund which aims to act as a catalyst for infrastructure investments implementing key EU policies in the areas of energy, climate change and infrastructure, focusing in particular on investment in trans-European networks (TEN-E and TEN-T) and renewables.","Equity finance","All sectors","Public","Public: international","7, 8, 9","Link","Primarily targets greenfield infrastructure in EU28",null,null,null,200000000,null,null,null,null,"2020-2030",null,"Funding call for 2020",null,null,null,null,null,null,null,null,null,null,null,null,null,null,null,null,null,null,"https://ec.europa.eu/inea/sites/inea/files/7.cef_ener_20160407_marguerite.pdf"]
["Modernisation Fund ","N/A","Sector-specific R&I: progressing emerging technologies","Electricity efficiency, Heat efficiency and recovery","Bulgaria, Czechia, Estonia, Croatia, Latvia, Lithuania, Hungary, Poland, Romania, Slovakia","A new fund to be established as part of the post-2020 reform of the EU ETS in its fourth phase\n\nThe Fund will support projects in energy efficiency, modernising the energy systems and just transition of carbon-intensive regions in 10 lower-income Member States (BG, CZ, EE, HR, LV, LT, HU, PL, RO, SK). Depending on national priorities and design, it can be used by companies, citizens, project promoters. The implementation of the Fund will be a responsibility of beneficiary Member States. Clear list of priority projects which are the main focus of the Fund: renewables, energy efficiency, energy storage, modernisation of energy networks and just transition in carbon dependent regions, but no solid fossil fuels.","Grant/subsidies","All sectors","Public","Public: international","4, 5, 6","Link","Supports Member States with a GDP per capita below 60% of the EU average in 2013\n Does not support solid fuel projects except those for efficient and sustainable district heating in Member States with a GDP per capita below 30% of the EU average in 2013 ","-",null,0,"€ 6.200.000.000 - € 9.300.000.000",null,null,null,null,"2021-2030",null,"-","-","-","-","-","-","-","-","-","-","-","-","-","-","-","-","-","-","-","-","-"]
["Research fund for coal and steel","Link","Sector-specific R&I: progressing emerging technologies","Electricity efficiency, Sustainable infrastructure","EU-wide","The Research Fund for Coal and Steel (RFCS) supports research and innovation projects in coal and steel sectors. These projects cover:\n•\tproduction processes\n•\tapplication, utilisation and conversion of resources\n•\tsafety at work\n•\tenvironmental protection\n•\treducing CO2 emissions from coal use and steel production","Grant/subsidies","Iron & Steel","Public","Public: international","1, 2, 3, 4, 5, 6, 7, 8, 9","Link","Different evaluation criteria are used for Research projects, Pilot and Demonstration projects and for Accompanying Measures",null,null,null,"€ 40.000.000 per year",366000,4410000,null,null,"Next proposal submission deadline in September 2019","36-42 months","Annual selection of proposals",null,null,null,null,null,null,null,null,null,null,null,null,null,null,null,"Payment schedule through project","Research projects 60%\nPilot and demonstration projects 50%\naccompanying measures, support and demonstration projects 100%",null,"https://ec.europa.eu/info/research-and-innovation/funding/funding-opportunities/funding-programmes-and-open-calls/research-fund-coal-and-steel-rfcs_en"]
["SPIRE","Link","Cross-cutting R&I: maximising the energy efficiency of cross-sector industrial components in a cost-efficient manner","Electricity efficiency, Sustainable infrastructure","EU-wide","SPIRE is a new public-private partnership (PPP) brought\nto life by the European Commission together with eight\nsectors of the process industry: chemicals, cement,\nceramics, minerals, steel, non-ferrous metals, industrial\nwater and process engineering. The SPIRE association\nproposes a clear vision for the future of the process industry\nin Europe, a long term commitment and ambitious targets.\nSPIRE supports the development of novel technologies for\nimproved resource and energy efficiency in the process\nindustry, making it more sustainable and competitive.","Grant/subsidies","All sectors","Public, Private","Public: international, Other","1, 2, 3, 4, 5, 6, 7, 8, 9","Link","Projects must have exploitable results, categorised into the following areas: \n- Products\n- Processes\n- Equipment\n- Knowledge & IP\n- Services \n- Other","Technical assistance / project development support",null,null,"€ 900.000.000 (EU budget)",null,null,"Yes","Must have matched funding in a contractual public private partnership","Ongoing","3-4 years ","Running 2014-2020\nLong-term vision for 2030 ",null,null,null,null,null,null,null,null,null,null,null,null,null,null,null,null,null,null,"https://www.spire2030.eu/intro\nhttps://www.spire2030.eu/sites/default/files/pressoffice/spire-roadmap.pdf"]
["Support Services for Exploitation of Research Results ","Link","Cross-cutting R&I: improving system integration, optimal design, intelligent and flexible operation, including industrial symbiosis to increase energy and resource efficiency","Electricity efficiency, Heat efficiency and recovery, Renewable energy","EU-wide","Provides advisory services including: Project Risk analysis; exploitation strategy seminars; business plan development; assistance for patenting, brokerage events; ad hoc assistance.","Third party financing","All sectors","Public","Public: international","2, 3, 4","Link","For completed and ongoing research projects in the field of energy under:\n- 7th Framework Programme - Thematic Priority number 5 \"ENERGY\" of the \"Co-operation\" programme\n- Horizon 2020 - Societal Challenge \"Secure, clean and efficient energy\"","Technical assistance / project development support"]
["Energy Aid","Link","Sector-specific R&I: increasing the cost effectiveness of not yet economically viable technologies","Electricity efficiency, Renewable energy","Finland","Based on its assessment the Ministry of Economic Affairs and Employment can grant aid for innovative energy projects. Energy aid is granted for investments and energy audits. So called aid for key energy projects is granted for investments on renewable energy and new energy technology.","Grant/subsidies","All sectors","Public","Public: national","4, 5, 6","Link","Energy aid can be granted to investment projects and studies that:\npromote the production or use of renewable energy;\npromote energy savings or increase the efficiency of energy generation or use; or\notherwise promote the transition towards a low-carbon energy system.\nInvestments in renewable energy use that are eligible for support:\nsmall-scale electricity and heat production projects;\nprojects producing biofuels for transportation;\ndemonstration projects for new technology.",null,null,null,55000000,null,5000000,"Yes"]
["Energy Audits","Link","Cross-cutting R&I: maximising the energy efficiency of cross-sector industrial components in a cost-efficient manner","Electricity efficiency, Renewable energy","Finland","The Energy Audit Programme is one of the oldest national energy efficiency grant schemes in place in Finland. The full-scale programme was launched in January 1994. The purpose of energy auditing is to analyse the energy use of the facility being audited, to work out the potential for energy savings and to present a profitability calculation of saving proposals. In addition to working out possible ways to use different forms of renewable energy and the energy saving potentials, the energy audit reports on the impact of the proposed measures on CO2 emissions.","Grant/subsidies","All sectors","Public","Public: national","Not known","Link ","Subsidised energy audits are for municipalities and SMEs. ","Other"]
["Rural development programme for mainland finland","Link","Cross-cutting R&I: maximising the energy efficiency of cross-sector industrial components in a cost-efficient manner",null,"Finland","The Rural Development Programme for Mainland Finland 2014–2020 (the Rural Development Programme) also provides funding in support of projects and business and primary-sector investments that promote energy efficiency.","Grant/subsidies","Chemicals & Pharmaceuticals, Heating & Cooling, Systems ","Public","Public: national","7, 8, 9","Link ","Various assessment criteria","Technical assistance / project development support",null,null,266000000,null,null,null,null,null,null,"Running from 2014-2020"]
["Smart Energy Program ","Link ","Cross-cutting R&I: improving system integration, optimal design, intelligent and flexible operation, including industrial symbiosis to increase energy and resource efficiency","Electricity efficiency, Heat efficiency and recovery, Renewable energy, Sustainable infrastructure","Finland","The focus areas of the program include:\nThe value chain of sustainable energy (bioenergy, W2E, W2V, biofuels), with emphasis on building export ecosystems in the target markets.\nThe Batteries from Finland campaign that will contribute to creating a business ecosystem worth millions of euros in Finland. We will make Finland a business platform that will attract international companies in the battery sector and take the position of a leading technology and service provider in the global market.\nWe will develop and create test platforms in smart networks (Smart Otaniemi, Åland Islands, Vaasa etc.) in Finland, and seek to build similar concepts in one or two target countries. This will be carried out with the help of global partnerships and creating solution and service concepts in the respective markets.\nIn the district heating and district cooling sector, the focus of ecosystem building will be in China.\nIn smart buildings, the focus areas will include IoT, AI digitalization and BIM.\nAs a general rule, our efforts will be on taking full advantage of digitalization.",null,"All sectors","Public","Public: national","Not known","Link ","The programme offers funding for both ecosystem projects and the development of smart solutions for individual companies. An application cycle is constantly open for applying Business Finland funding for companies and research organizations.",null,null,null,100000000,null,null,null,null,null,null,"Running from 2017-2021"]
["Finnish Ministry of Economic Affairs and Employment funding","Link","Cross-cutting R&I: improving system integration, optimal design, intelligent and flexible operation, including industrial symbiosis to increase energy and resource efficiency","Electricity efficiency, Heat efficiency and recovery, Carbon capture and storage, Renewable energy, Sustainable infrastructure","Finland","The Ministry of Economic Affairs and Employment encourages companies to renew and pursue sustainable growth and productivity. MEAE is responsible for ensuring that domestic state financing and export financing function as well as possible, taking into account the financing needs of companies at different stages of development and national and international regulations governing business financing.","Debt financing, Grant/subsidies","All sectors","Public","Public: national","Not known","Link","Funding is provided in the form of grants and loans. It is available to companies, research organisations and providers of public services. Innovative SMEs aiming at growth through internationalisation are an important target group.\n\nFunding is available for research, product development, business development as well as bold experiments."]
["Ministry of Environment funding","Link","Cross-cutting R&I: improving system integration, optimal design, intelligent and flexible operation, including industrial symbiosis to increase energy and resource efficiency","Electricity efficiency, Heat efficiency and recovery, Carbon capture and storage, Renewable energy, Sustainable infrastructure","Finland","The Ministry of the Environment awards government grants and coordinates the ways how organisations and communities can seek financial assistance for their activities and projects. Government grants may be awarded for purposes included in the State budget and development projects that support the objectives of the Government Programme.","Grant/subsidies","All sectors","Public","Public: national","Not known","Link","The Ministry of the Environment awards government grants and coordinates the ways how organisations and communities can seek financial assistance for their activities and projects. Government grants may be awarded for purposes included in the State budget and development projects that support the objectives of the Government Programme."]
["Finnvera","Link","Sector-specific R&I: increasing the cost effectiveness of not yet economically viable technologies","Electricity efficiency, Heat efficiency and recovery, Carbon capture and storage, Renewable energy, Sustainable infrastructure","Finland","Finnvera offers financing for business start-ups, growth and internationalization, as well as for hedging against export risks. We strengthen the operating conditions and competitiveness of Finnish companies by offering loans, guarantees and export guarantees. Finnvera shares the risk involved in financing with other financiers.","Debt financing, Guarantees","All sectors","Public","Public: national","Not known","N/A","Varies with financial instrument"]
["Nordic Investment Bank Funding","Link","Cross-cutting R&I: improving system integration, optimal design, intelligent and flexible operation, including industrial symbiosis to increase energy and resource efficiency","Electricity efficiency, Heat efficiency and recovery, Carbon capture and storage, Renewable energy, Sustainable infrastructure","Denmark, Estonia, Finland, Sweden, Norway","NIB’s mission is to finance projects that improve productivity and benefit the environment of the Nordic and Baltic countries.\n\nThe mission was given by the Bank’s owner countries to address the needs of the region and the challenges it is facing - sustainable growth, technological innovation, climate change, the development of circular economy and the protection of marine environments.","Debt financing","All sectors","Public","Public: national","Not known","Link","To boost productivity in its member countries, NIB seeks to support projects that aim for technical progress and innovation, improvements in infrastructure, development of human capital and equal economic opportunities, and improvements in market efficiency and the business environment. Environmental benefits are sought by financing projects that contribute to pollution reduction, maintaining resilient infrastructure, advancing resource efficiency, development of clean technology, and climate change mitigation."]
["EDF Pulse Croissance","Link","Cross-cutting R&I: improving system integration, optimal design, intelligent and flexible operation, including industrial symbiosis to increase energy and resource efficiency","Electricity efficiency, Renewable energy, Sustainable infrastructure","France","EDF Pulse Expansion, the EDF start-up incubator, that invests in startups and innovative projects to achieve the energy and digital transition.\nEDF Pulse Expansion invests directly in startups and works as their partners. ","Equity finance","All sectors","Private","Private: investor","4, 5, 6","Link","EDF Pulse Expansion invests in startups whose solutions have already been validated on a market, and which already have clients as well as a strong proposition value. ","Technical assistance / project development support",null,10,"€ 30.000.000 per year",2000000,6000000]
["Energy Savings Certificates Programme","Link","Cross-cutting R&I: maximising the energy efficiency of cross-sector industrial components in a cost-efficient manner","Electricity efficiency","France","The EEC scheme, created in 2006, is based on an obligation to achieve energy savings imposed by the government on energy sellers. They must therefore actively promote energy efficiency among energy consumers: households, local authorities or professionals. The 1Er January 2018, the device entered its 4Th 3-year bond period.","Energy supplier obligations","All sectors","Public","Public: national","7, 8, 9","Link","N/A, EECs are allocated, under certain conditions, by the services of the Ministry of Energy, to eligible actors (obliged but also other legal persons not obliged) carrying out energy-saving operations. These actions can be carried out in all sectors of activity (residential, tertiary, industrial, agricultural, transport, etc.), on the heritage of the eligible or with third parties that they have encouraged to achieve energy savings. The obligated also have the option of buying EECs from other players who have carried out energy-saving actions, in particular those who are not obliged. They can also obtain certificates by contributing financially to support programs."]
["Green loan","N/A","Sector-specific R&I: increasing the cost effectiveness of not yet economically viable technologies",null,"France","Dedicated to financing investments that put in place industrial manufacturing processes and tools which are more energy-efficient, less polluting, or create more eco-efficient products. It is aimed at small and medium-sized enterprises (SMEs) and middlemarket companies (entreprises de taille intermédiaire - ETIs) in all industrial sectors","Debt financing","All sectors","Public","Public: national","7, 8, 9","N/A",null,null,null,null,52000000,null,5000000]
["Heat Fund","Link ","Cross-cutting R&I: maximising the recovery of industrial excess heat/cold","Heat efficiency and recovery, Renewable energy","France","Provides financial support to project for producing heat from renewable energy: biomass (forestry, agricultural, biogas, etc.), geothermal energy (direct use or through heat pumps), thermal solar energy and recovered energy as well as the development of heat networks using these forms of energy. The heat fund makes\nrenewable heat competitive with heat produced from conventional forms of energy by guaranteeing a price for heat from renewable sources approximately 5% lower than that obtained from conventional sources.","Grant/subsidies","Heating & Cooling, Iron & Steel, Chemicals & Pharmaceuticals","Public","Public: national","4, 5, 6","Link","The sectors involved are group housing, services, agriculture and industry.",null,null,null,1000000000]
["Rational use of energy – investments","N/A","Cross-cutting R&I: maximising the energy efficiency of cross-sector industrial components in a cost-efficient manner",null,"France","Support the investments made by businesses to purchase energy saving equipment or make changes to processes or equipment in use. These funded operations are demonstrations or example operations.","Grant/subsidies",null,"Public","Public: national","4, 5, 6","N/A","These funded operations are demonstrations or example operations.",null,null,null,500000]
["KFW Energy Efficiency Programme","Link ","Cross-cutting R&I: maximising the energy efficiency of cross-sector industrial components in a cost-efficient manner","Heat efficiency and recovery, Renewable energy, Electricity efficiency","Germany","Particularly in difficult economic times, energy efficiency can make an important contribution to reducing the fixed costs of an enterprise. In order for small and medium-sized enterprises to be able to sustain such investments too, we give particular support to SMEs in the form of low interest rates for loans. In addition, KfW is financing the development of renewable energies, such as electricity and heat from the ground, sun, wind and water.","Debt financing","All sectors","Public","Public: national","7, 8, 9","Link","Criteria vary per each specific programme. Programmes are for: environmental protection, energy efficiency and process heat from renewable energy, energy efficiency - production facilities and processes, energy-efficient construction and refurbishment, environmental innovation, renewable energy, offshore wind energy.",null,null,null,"-",null,null,null,null,null,null,null,null,null,null,null,null,null,null,0.01]
["Programme to Promote Investment in Highly Efficient Horizontal Technologies","N/A","Cross-cutting R&I: maximising the energy efficiency of cross-sector industrial components in a cost-efficient manner","Electricity efficiency, Heat efficiency and recovery","Germany","Objective of the programme is to provide incentives to the industrial and commercial sector to invest in highly efficient horizontal technologies in order to realize related energy efficiency potentials; target (2020 and after): annual reduction of as much as 1 mio. toe CO2","Grant/subsidies","All sectors","Public","Public: national","Not known","N/A",null,null,null,null,null,null,null,null,null,null,null,"Effective from 2016-2019",null,null,null,null,null,null,null,null,null,null,null,null,null,null,null,null,null,null,"https://www.iea.org/policiesandmeasures/pams/germany/name-158554-en.php?s=dHlwZT1lZSZzdGF0dXM9T2s,&return=PG5hdiBpZD0iYnJlYWRjcnVtYiI-PGEgaHJlZj0iLyI-SG9tZTwvYT4gJnJhcXVvOyA8YSBocmVmPSIvcG9saWNpZXNhbmRtZWFzdXJlcy8iPlBvbGljaWVzIGFuZCBNZWFzdXJlczwvYT4gJnJhcXVvOyA8YSBocmVmPSIvcG9saWNpZXNhbmRtZWFzdXJlcy9lbmVyZ3llZmZpY2llbmN5LyI-RW5lcmd5IEVmZmljaWVuY3k8L2E-PC9uYXY-"]
["7th Energy Research Programme","Link","Cross-cutting R&I: improving system integration, optimal design, intelligent and flexible operation, including industrial symbiosis to increase energy and resource efficiency",null,"Germany","In September 2018, the Federal Cabinet adopted the 7th Energy Research Programme entitled “Innovations for the Energy Transition”. It contains the guidelines for energy research funding in the coming years. In the context of the 7th Energy Research Programme, the Federal Government is making around €7 billion available for projects. New thematic priorities are set on the basis of the following strategy lines. Project funding is all most funded as a whole with no specific budget per technology. It is possible to fund bilateral and multilateral projects with National funding through the Member states where the partners belong to as well as other bilateral agreements.","Grant/subsidies","All sectors","Public","Public: national","1, 2, 3, 4, 5, 6, 7, 8, 9","Link","The Federal Government promotes research and development in the field of forward-looking energy technologies. It is therefore using the 7th Energy Research Programme to help companies and research establishments to research and develop technologies for the energy supply of tomorrow. The Energy Research Programme is a strategic element of the Federal Government’s energy policy that aims to support this continuous research and innovation process.",null,null,null,7000000000,null,null,null,null,null,null,null,null,null,null,null,null,null,null,null,null,null,null,null,null,null,null,null,null,null,"https://www.bmwi.de/Redaktion/EN/Artikel/Energy/research-for-an-ecological-reliable-and-affordable-power-supply.html"]
["ESPA Programmes","Link","Other","Electricity efficiency, Heat efficiency and recovery, Carbon capture and storage, Renewable energy, Sustainable infrastructure","Greece","Research activities should focus in the same thematic areas identified above , Various calls for proposals for various thematic areas. ","Grant/subsidies","All sectors","Public","Public: national, Public: international","1, 2, 3, 4, 5, 6, 7, 8, 9","N/A",null,null,null,"not currently available - programme in progress",70000000,null,null,"No",null,"multiple rounds - 1st round in 2017- last expected in 2019","maximum 3 years","running to 2020",null,null,null,null,null,null,null,null,null,null,null,null,null,null,null,null,null,null,"http://www.eyde-etak.gr/central.aspx?sId=119I499I1296I646I491546"]
["Unified action of public support to Research, Technological Development and Innovation [Ενιαίας Δράσης Κρατικών Ενισχύσεων Έρευνας, Τεχνολογικής Ανάπτυξης και Καινοτομίας «ΕΡΕΥΝΩ – ΔΗΜΙΟΥΡΓΩ - ΚΑΙΝΟΤΟΜΩ»]","Link","Other","Electricity efficiency, Heat efficiency and recovery, Carbon capture and storage, Renewable energy, Sustainable infrastructure","Greece","Funds R&D projects of individual firms, groups of firms or consortia of firms and research organisations in a broad range of thematic areas including (among others): \n- development of new materials for energy related applications (energy efficiency, recovery, storage) that can be used in indstrial applications, buldings or consumers (part of thematic area 1)\n- new technologies to improve energy efficiency in industrial applications and the use of renewables \n- new renewable technologies \n- technology for prodcution energy from waste/biomass\n- energy storage \n- Hydrogen technologies (fuel cells etc)\n- energy networks management/optimisation, smart networks\n- carbon capture and storage, new technologies for energy from fosil fuels  ","Grant/subsidies","All sectors","Public, Private","Public: national, Public: international","1, 2, 3, 4, 5, 6, 7, 8","N/A","Various, maximum funding applicable and level of own contribution depending on size of firm, type of activity supported and involvement of public research organisations ",null,null,"not currently available - programme in progress","€ 542.000.000 (ca. € 50.000.000 for energy thematic area)",null,null,"Yes","Eu state aid rules for R&D and innovation ","multiple rounds - 1st round in 2017- last expected in 2019","maximum 3 years","running to 2020"]
["Fund for intangible capital, competitiveness and productivity. ","Link","Cross-cutting R&I: improving system integration, optimal design, intelligent and flexible operation, including industrial symbiosis to increase energy and resource efficiency",null,"Italy","This is a fund aimed to foster the development of immaterial capital, competitiveness and productivity, with a budget of 5 million euros for the year 2018, 250 million euros starting from the year 2019. It is linke to the Industry 4.0 program.  \nThe aims are to growth the country's competitiveness and production and the fund is intended to finance:\n\na) research and innovation projects to be carried out in Italy by public and private entities, including foreign ones, in strategic areas for the development of intangible capital functional to the country's competitiveness;\n\nb) the operational and administrative support for the realization of the projects financed pursuant to letter a), in order to enhance the results and favor their transfer to the productive economic system.\n",null,"All sectors","Public","Public: national","Not known","N/A",null,null,null,null,null,null,null,null,null,null,null,"2.7 billion euro in period 2018-2031",null,null,null,null,null,null,null,null,null,null,null,null,null,null,null,null,null,null,"http://www.senato.it/japp/bgt/showdoc/17/DDLPRES/0/1048718/index.html?part=ddlpres_ddlpres1-articolato_articolato1-parte_partei-titolo_titoloi-articolo_articolo96","There is not much available on this fund online. "]
["Innovation agreements","Link","Cross-cutting R&I: improving system integration, optimal design, intelligent and flexible operation, including industrial symbiosis to increase energy and resource efficiency","Electricity efficiency, Heat efficiency and recovery, Renewable energy, Carbon capture and storage, Sustainable infrastructure","Italy","Companies of any size carrying out industrial, agro-industrial, artisan or service-related activities can benefit as well as research activities.\n\nBidders may also submit projects jointly between themselves and / or research organizations, up to a maximum of five co-proponents.\n\nThe fund supports projects concerning industrial research and experimental development activities aimed at the realization of new products, processes or services or the significant improvement of existing products, processes or services, through the development of one or more of the technologies identified by the European Union Framework Program for research and innovation 2014 - 2020 \"Horizon 2020\", such as:\n\n    Information and communication technologies (ICT)\n    Nanotechnology\n    Advanced materials\n    Biotechnology\n    Advanced manufacturing and processing\n    Space\n    Technologies aimed at achieving the following objectives of the \"Society Challenges\" priority set by the Horizon 2020 Program\n\nResearch and development projects must include costs and eligible costs not less than 5 million euros and not exceeding 40 million euros, have a duration not exceeding 36 months and be started after the presentation of the project proposal to the Ministry of Economic Development .\n\n","Debt financing, Grant/subsidies","All sectors","Public","Public: national","Not known","Link","Companies of any size can benefit from the facilities, with at least two approved budgets, which carry out industrial, agro-industrial, artisan or service-related activities  as well as research activities. \n\nEligible technologies are listed in Appendix in this document https://www.mise.gov.it/images/stories/normativa/Dm_20_giugno_2013-Bando_intervento_RS.pdf\n\nThe concessions are granted within the limits of the maximum aid intensities established by the GBER Regulation, in the form of the subsidized loan for a nominal percentage of the total overall eligible expenses, in relation to the size of the company, as follows : a) 70 percent for small companies, b) 60 percent for medium-sized companies, c) 50 percent for large companies.\n\nResearch centres the funds can provide direct contributions to expenditure for a nominal percentage of total eligible expenses equal to 25 percent.",null,"This measure can be used in co-existance with other measures within the Piano Impresa 4.0",null,267000000,5000000,40000000,"Yes","No, but General block exemption Regulation (GBER) applies","applications currently suspended","36 months","Unclear",".",".",".",".","Max 8 years",null,null,"subsidized loan rate is  20% of reference rate in force","Depends on size of company, a)70% for small enterprises; b)60% medium ent; c)50% large ent",".",".",".",null,null,null,null,null,"Only for research centres, up to 25% of the investment","https://www.mise.gov.it/index.php/it/incentivi/impresa/accordi-per-l-innovazione"]
["Sustainable Growth Fund  (former Fund for the technology innovation)","Link","Cross-cutting R&I: improving system integration, optimal design, intelligent and flexible operation, including industrial symbiosis to increase energy and resource efficiency","Electricity efficiency, Renewable energy, Sustainable infrastructure","Italy","The new Fund is intended for the financing of programs and interventions with a significant national impact on competitiveness, with particular regard to:\n.  the promotion of research, development and innovation projects of strategic importance for relaunching the competitiveness of the production system, also through the consolidation of the centers and of the research and development structures of the companies\n. the strengthening of the production structure, the re-use of production facilities and the relaunch of areas that are in situations of complex crisis of national importance through the signing of program agreements\n.  the promotion of the international presence of companies and the attraction of foreign investments, also in connection with the actions that will be activated by the ICE - Agency for the promotion abroad and the internationalization of Italian companies","Debt financing","All sectors","Public","Public: national","1, 2, 3, 4, 5, 6, 7","N/A","Projects must be of national strategic importance, providing significant impact on the development of the coutry's productive system and economy.\nListo of supported technology is the same as the one for Innovation agreements - unclear if these two schemes are related.\nProjects which are prioritised are:  \n. Projects that envisage forms of collaboration between companies and research bodies for which the role of leader, is assumed by the research body.\n. Projects that envisage international collaboration\n. Energy efficiency, renewable energy  projects \n\nThe project proposals for the realization of industrial research and experimental development activities must exceed € 5 million and be lower than € 40 million.\n",null,"No clear but might interact (or overlap) with the \"innovation agreements\", Not clear but might interact (or overlap) with the \"innovation agreements\"","-",50000000,"-","-","Yes","-","Bids and applications open when a \"Bando\" is launched by the government. The recent bando was called \"Intelligent Factory, Agrifood and Life Sciences\" - and application opened in September 2019 and closed in June 2019 for Inteligent factory and agrifood related activity. Agrifood applications closed in March 2019.  ",null,null,null,null,null,null,null,null,null,null,null,null,null,null,null,null,null,null,null,null," Decreto interministeriale 8 marzo 2013 - defines priority, maximum aid, etc of the fund  https://www.mise.gov.it/images/stories/normativa/dm_8_marzo_2013.pdf\nGazzetta Ufficiale n67 - 20 Marzo 2019 - DECRETO 31 gennaio 2019. Assegnazione di risorse del Fondo per la crescita sostenibile per l’attuazione di bandi di domanda\npubblica intelligente. (19A01799) . . . . . Pag. 42  - set the funds to euro 50 millions \nMISE website - but it does not say much https://www.mise.gov.it/index.php/it/incentivi/impresa/fondo-per-la-crescita-sostenibile ","I found this scheme very difficult to understand - unclear how projects apply, what is the fund, whether it is actually and umbrella of other schemes including the \"innovation agreements\" and \"H2020\" - if we need to pick up interviews, I would recommend interviewing Italy cause they always make things super complicated. "]
["Ricerca Sistema Elettrico","Link","Cross-cutting R&I: maximising the energy efficiency of cross-sector industrial components in a cost-efficient manner","Electricity efficiency","Italy","There are two type of financing programmes: \n - Type a tender: funding of research activities for the benefit of users of the electricity system - low RTL research funder at 100%.\n- Type b tender: financing of research activities for the benefit of the users of the electricity system and subjects operating in the electricity sector - industrial research financed at 50% and experimental development financed at 25% (+ increases on % financing in certain conditions)\nThe funding follows three years plan, where the objectives and priority for research and innovation are determined. , There are two type of financing programmes: \n - Type A tender: funding of research activities for the benefit of users of the electricity system - low RTL research funder at 100%.\n- Type B tender: financing of research activities for the benefit of the users of the electricity system and subjects operating in the electricity sector - industrial research financed at 50% and experimental development financed at 25% (+ increases on % financing in certain conditions)\nThe funding follows three years plan, where the objectives and priority for research and innovation are determined. ","Grant/subsidies","All sectors","Public","Public: national","Not known","N/A","The duration of the project must be at least 12 months, and not more than 36 months. \nTotal project cost must be between 0.5 Million euro and 3M euro.",null,"The contrary, Article 5.3 of the Decreto of 16 April 2018 state that the tender must indicate the conditions for complying with the prohibition of accumulating state aid according to the current European legislation","More than 900 M € allocated in 13 years, almost 700 M € disbursed, around 350 projects carried out between AdP and calls for proposals.\nAdP are program agreements between MiSE (Ministry of economic development) and italian research centres (i.e. ENEA, CNR, RSE) ",{"$f":"252000000/3","v":84000000},null,null,"Yes"," Yes, projects must indicate the conditions for complying with the prohibition of accumulating state aid","The first time this was launched the tender procedure was approved and launched on the 12th Decembre 2008 and the tender deadline for projects was the 18th May 2009. \nI cannot find define timeline for the renewals ",null,"In its NECP Italy states that a new three years plan is in preparation phase for 2019 - 2021 with new objectives for research in agreement with SET Plan and Mission Innovation targets",null,null,null,null,null,null,null,null,null,null,null,null,null,null,null,null,null,null,"http://www.ricercadisistema.it/#/page/Cos%E2%80%99%C3%A8"]
["Climate and energy fund","N/A","Cross-cutting R&I: maximising the energy efficiency of cross-sector industrial components in a cost-efficient manner",null,"Luxembourg","By a law of 23rd December 2004, Luxembourg has set up a fund to finance the Kyoto mechanisms\n(the “Kyoto Fund”) 186. In January 2011, this Fund has been renamed “Climate & Energy Fund” to\nreflect the fact that from that year onward it is also used to finance projects in the domains of energy\nefficiency and renewable energy sources following the objectives set out for Luxembourg in the\ncontext of the EU “2020 Climate & Energy package”. ",null,null,"Public","Public: national","Not known","N/A",null,null,null,null,10000000]
["Environmental fund","N/A","Sector-specific R&I: increasing the cost effectiveness of not yet economically viable technologies",null,"Luxembourg","The environmental fund (Loi modifiée du 31 mai 1999 portant institution d’un fonds pour la protection\nde l’environnement) is used to support communal projects, including in the areas of climate action,\nenergy efficiency and renewable energy.","Grant/subsidies","All sectors","Public","Public: national","7, 8, 9","N/A"]
["National Company of Credit and Investment","Link","Other","Electricity efficiency, Heat efficiency and recovery, Carbon capture and storage, Renewable energy, Sustainable infrastructure","Luxembourg","Innovation loan provided by the “Société Nationale de Crédit et\nd’investissement” (SNCI) is an instrument aimed at co-financing\nexpenditures of R&D projects involving the launch of a new product or\nservice or the development of new manufacturing or commercialisation\nprocesses. The innovation loan is an additional instrument to the R&D\nincentive scheme of the Ministry o Economy and Foreign Trade.","Debt financing","All sectors","Public","Public: national","8, 7, 9","Link ","SNCI is a public-law banking institution specialized in medium and long term financing of Luxembourg based companies. SNCI’s financing instruments are investments in fixed assets, innovations and exports.\nSNCI also grants start-up/business transfer loans to newly incorporated or inherited SME’s. It may also finance investments of Luxembourg companies abroad.\nSNCI may finance equity operations either directly by taking equity positions or granting strategic loans, or through its subsidiary CD-PME S.A. or affiliated financing companies.\nSNCI does not finance 100% of a given project or export transaction but - with risk-sharing in mind - instead seeks to ensure an appropriate balance between the various available sources of finance. Its approach is therefore one of co-financing with the corporate banking sector.",null,null,null,null,25000,10000000,"Yes",null,"Ongoing","10 years",null,null,null,null,null,null,null,null,"2-2.5%",null,null,null,null,null,null,null,null,null,null,"https://www.snci.lu/fr/"]
["Malta Enterprise Investment Aid","Link","Other","Electricity efficiency, Heat efficiency and recovery, Renewable energy, Carbon capture and storage","Malta","Investment Aid Tax Credits are intended to sustain the regional industrial and economic development of Malta.  This measure facilitates initial investments by encouraging the setting up of new establishments and the expansion and development of existing businesses.","Tax rebates and exemptions","All sectors","Public","Public: national","7, 8, 9","Link ","To be eligible for aid through this incentive, an undertakings must operate from Malta and be\nincorporated in the European Union as a partnership en nom collectif, en commandite or a limited liability\ncompany, co-operative, family business or similar set-up.\nA legal entity shall only be supported in respect of eligible investments in one or more of the qualifying\nactivities (as described in Section 4 of these Incentive Guidelines) and as long as that single entity does\nnot engage in disqualifying activities (as described in Section 5 of these Incentive Guidelines). ",null,null,null,null,null,null,"Yes",null,null,null,"31st December 2020"]
["Carbon Capture, Utilisation and Storage (CCUS) Tender","Link ","Sector-specific R&I: increasing the cost effectiveness of not yet economically viable technologies","Carbon capture and storage","Netherlands","Subsidy programme to stimulate CCUS R&D","Grant/subsidies","All sectors","Public","Public: national","1, 2, 3, 4, 5, 6","Link ","Only a partnership with at least one entrepreneur can submit a grant application. Exceptions are demonstration projects energy innovation (DEI+) and the Top Energy Studies sector for CCUS. ",null,null,null,1000000,null,250000,"Yes","25% for experimental development, 50% for industrial development",null,null,null,null,null,null,null,null,null,null,null,null,null,null,null,null,null,null,null,null,null,"https://www.rvo.nl/subsidies-regelingen/subsidies-energie-innovatie-topsector-energie/carbon-capture-utilisation-and-storage-tender"]
["Energie-innovatie - DEI+","Link","Cross-cutting R&I: improving system integration, optimal design, intelligent and flexible operation, including industrial symbiosis to increase energy and resource efficiency","Electricity efficiency, Heat efficiency and recovery, Renewable energy","Netherlands","Support for pilot and demonstration projects that are focused on reducing CO2 emissions from energy","Grant/subsidies","All sectors","Public","Public: national","7, 8, 9","Link",null,null,null,null,35000000,null,null,null,null,null,null,null,null,null,null,null,null,null,null,null,null,null,null,null,null,null,null,null,null,null,"https://www.rvo.nl/subsidies-regelingen/demonstratie-energie-en-klimaatinnovatie/energie-innovatie-dei"]
["Energie-investeringsaftrek (EIA)","Link","Cross-cutting R&I: improving system integration, optimal design, intelligent and flexible operation, including industrial symbiosis to increase energy and resource efficiency","Electricity efficiency, Heat efficiency and recovery, Renewable energy","Netherlands","Tax incentive for energy innovation","Tax rebates and exemptions","All sectors","Public","Public: national","7, 8, 9","Link","Requirements to qualify for EIA \nYou are an entrepreneur in the Netherlands, Aruba, Curacao, Sint Maarten or the BES Islands;\nyou pay income or company tax;\nyou make an investment which is included in the Energy List (these are referred to as company resources in the Energy List);\nthe company resource meets the requirements for the Energy List.\nThe company resource has not been used before.\nYou report the company resource on time (main rule: within three months after the order to supply).",null,null,null,"€ 147.000.000 in  2019",null,null,null,null,null,null,null,null,null,null,null,null,null,null,null,null,null,null,null,null,null,null,null,null,null,"https://www.rvo.nl/subsidies-regelingen/energie-investeringsaftrek-eia"]
["Innovation Credit","Link","Other","Electricity efficiency, Heat efficiency and recovery, Carbon capture and storage, Renewable energy, Sustainable infrastructure","Netherlands","Direct loan from government to SMEs for risky innovation projects","Debt financing","All sectors","Public","Public: national","7, 8, 9","Link","For this scheme, only those projects are eligible which are technologically innovative and unique to the Netherlands, Bonaire, St. Eustatius and Saba. For this reason, you are required to explain in detail the technical challenge involved and to approach the project systematically and according to a plan. Its technical feasibility needs to be established and all activities up to and including the testing of prototypes must be able to be supported.",null,null,null,null,null,null,null,null,null,null,null,null,null,null,null,null,null,null,null,null,null,null,null,null,null,null,null,null,null,"https://english.rvo.nl/innovation-credit"]
["Small Business Innovation Research Programma (SBIR)","Link","Other",null,"Netherlands","Innovation competition where winners receive financial support to develop innovations with societal value","Grant/subsidies","All sectors","Public","Public: national","7, 8, 9","Link "]
["WBSO","Link","Other",null,"Netherlands","Tax benefits for R&D around sustainable energy","Tax rebates and exemptions","All sectors","Public","Public: national","1, 2, 3","Link",null,null,null,null,1205000,null,null,"N/A or unknown",null,null,24,null,null,null,null,null,null,null,null,null,null,null,null,null,null,null,null,null,null,null,"https://www.rvo.nl/subsidies-regelingen/wbso"]
["CLIMIT ","Link","Cross-cutting R&I: improving system integration, optimal design, intelligent and flexible operation, including industrial symbiosis to increase energy and resource efficiency","Carbon capture and storage","Norway","The CLIMIT programme provides financial support for research, development, pilots and demonstration of CCS technologies. \nCLIMIT has supported development of CCS technology in Norway for more than ten years. The knowledge and solutions created during this time have laid the technological foundation for work on CO2 full-scale projects in Norway. CLIIT has also made significant contributions to CCS development outside Norway's borders.","Grant/subsidies","All sectors","Public","Public: national","4, 5, 6, 7, 8, 9","Link","For CCS projects only","Technical assistance / project development support",null,null,140700000,null,null,null,null,null,null,null,null,null,null,null,null,null,null,null,null,null,null,null,null,null,null,null,null,null,"https://www.gassnova.no/en/climit"]
["ENERGIX ","Link","Cross-cutting R&I: improving system integration, optimal design, intelligent and flexible operation, including industrial symbiosis to increase energy and resource efficiency","Electricity efficiency, Renewable energy, Sustainable infrastructure","Norway","The primary objective of this programme is to promote the long-term, sustainable development of the energy system to enhance the competitiveness of Norwegian trade and industry and facilitate the transition to a low-emission society.","Grant/subsidies","All sectors","Public","Public: national","Not known","Link","Funding will be awarded to projects that have anticipated major soco-economic or commercial benefits and that will promote the sustainable energy transition. The programme board will support projects with a significant level of risk that would not be realised without this support, or would be realisd on a smaller scale. Funding will also be awarded to projects that meet the needs of trade and industry and society at large for long-term competence-building."]
["Research Council of Norway funding","Link","Cross-cutting R&I: improving system integration, optimal design, intelligent and flexible operation, including industrial symbiosis to increase energy and resource efficiency","Electricity efficiency, Heat efficiency and recovery, Carbon capture and storage, Renewable energy, Sustainable infrastructure","Norway","The Research Council promotes competitiveness and growth in Norwegian trade and industry by providing financial support and advice for research and innovation projects.","Grant/subsidies","All sectors","Public","Public: national","1, 2, 3, 4, 5, 6, 7, 8, 9","Link","Varies with call for proposal"]
["Enova","Link","Cross-cutting R&I: improving system integration, optimal design, intelligent and flexible operation, including industrial symbiosis to increase energy and resource efficiency","Electricity efficiency, Heat efficiency and recovery, Carbon capture and storage, Renewable energy, Sustainable infrastructure","Norway","Enova SF is owned by the Ministry of Climate and Environment and contributes to reduced greenhouse gas emissions, development of energy and climate technology and a strengthened security of supply.","Grant/subsidies","All sectors","Public","Public: national","1, 2, 3, 4, 5, 6, 7, 8, 9","N/A"]
["Innovation Norway","Link ","Cross-cutting R&I: improving system integration, optimal design, intelligent and flexible operation, including industrial symbiosis to increase energy and resource efficiency","Electricity efficiency, Heat efficiency and recovery, Carbon capture and storage, Renewable energy, Sustainable infrastructure","Norway, EU-wide","The EEA and Norway Grants by Innovation Norway primarily provide funding for our Business Development, Innovation and SMEs Programme. These Programmes are focused on strengthening competitiveness of European businesses through investments in innovation.","Grant/subsidies","All sectors","Public","Public: national","1, 2, 3, 4, 5, 6, 7, 8, 9","Link","Varies by call for proposal"]
["Credit line for energy efficiency","Link","Cross-cutting R&I: improving system integration, optimal design, intelligent and flexible operation, including industrial symbiosis to increase energy and resource efficiency","Electricity efficiency","Portugal","Aims to make industry and tourism services sector more modern and competitive via measures that reduce energy consumption and support change to renewable energies. For SMEs","Debt financing","All sectors","Public","Public: national","Not known","Link","Selected sectors only for certain types of investment",null,null,null,100000000,null,null,null,null,null,null,null,null,null,null,null,null,null,null,null,null,null,null,null,null,null,null,null,null,null,"https://www.lisgarante.pt/pt/catalogo/linha-de-credito-para-eficiencia-energetica/"]
["FEE - Energy Efficiency Fund","Link","Cross-cutting R&I: improving system integration, optimal design, intelligent and flexible operation, including industrial symbiosis to increase energy and resource efficiency","Electricity efficiency","Portugal","It is a financial instrument that supports the national action plan for energy efficiency. Funds/supports technological projects in transport, housing, services, industry and public sector + horizonal measures for energy efficiency","Grant/subsidies","All sectors","Public","Public: national, Public: international","Not known","Link","Depends on the specific programme - several are launched throughout the year focusing on specific sectors/measures",null,"Portugal 2020",null,"Depends on the programme",null,null,null,null,null,null,null,null,null,null,null,null,null,null,null,null,null,null,null,null,null,null,null,null,null,"http://www.pnaee.pt/fee#sobreofee"]
["Regional Operational Programmes","Link","Cross-cutting R&I: improving system integration, optimal design, intelligent and flexible operation, including industrial symbiosis to increase energy and resource efficiency",null,"Portugal","Aims to increase energy efficiency in companies, public adminstration and residential buildings. Focus on renovation of existing infrastructure with the worse energy performance. Financing focus on underdeveloped regions.","Grant/subsidies","All sectors","Public","Public: international","Not known","Link","Depends on the region but only certain types of businesses are eligible for funding. E.g. In Lisbon it is the industrial sector but in the south is the tourism services sector",null,null,null,393800000,null,null,null,null,null,null,null,null,null,null,null,null,null,null,null,null,null,null,null,null,null,null,null,null,null,"https://ec.europa.eu/energy/sites/ener/files/documents/pt_building_renov_2017_pt.pdf"]
["Carbon Fund for a Sustainable Economy (FES-CO2)","Link","Cross-cutting R&I: improving system integration, optimal design, intelligent and flexible operation, including industrial symbiosis to increase energy and resource efficiency","Electricity efficiency, Heat efficiency and recovery, Carbon capture and storage, Renewable energy, Sustainable infrastructure","Spain","The new climate financing instrument has tried to focus its efforts on achieving emission reductions in Spain by launching the so-called \"Climate Projects\", or support from others such as some Environmental Promotion Programs (PIMAS)","Grant/subsidies","All sectors","Public","Public: national","Not known","N/A"]
["JESSICA-F.I.D.A.E Fund (Energy Saving and Diversification Investment Fund)","Link","Cross-cutting R&I: maximising the energy efficiency of cross-sector industrial components in a cost-efficient manner","Electricity efficiency, Renewable energy","Spain","The aim of this fund is to finance urban sustainable development projects to improve energy efficiency, use renewable energies and be developed by energy services companies (ESCOs) or other private enterprises. This fund is to finance all the investments directly bound to the issue of energy efficiency and the use of renewable energies in urban environments, and it is compatible with other public or private funding sources, as well as with subsidies either co-funded or not by the FEDER.\n\nPriority issues:\n\nEnergy efficiency and energy management (existing and new buildings)\nRenewable energy projects (solar thermal, solar PV, biomass)\nProjects related to clean transport, contributing to improvement of energy efficiency and the use of renewable energies","Grant/subsidies","All sectors","Public","Public: national","7, 8, 9","Link","Being located in one of the Spanish Regions included in F.I.D.A.E. - Andalusia, the Canary Islands, Castile & Leon, Castile-La Mancha, Ceuta, Valencia, Galicia, Melilla & Murcia Region.\nBeing included in one of the following sectors:\nBuilding: public and private buildings\nIndustry: firms of any size\nTransport: infrastructures, equipment and both public and private transport fleet (for public use).\nPublic services infrastructures related to energy:\nOutdoor public lighting and traffic lights.\nLocal infrastructures, inclusive of intelligent networks, information technology and communications (TIC) related to priority issues.\nTake part in one of the priority issues:\nEnergy Efficiency Projects and energy management:\nRenovation of existing buildings, with actions on the thermal envelope, heating installations, cooling, lighting, etc.\nNew buildings with energy rating A or B.\nRenovation or enlargement of the heat/cool existing networks.\nRenewable Energy Projects:\nSolar thermal.\nSolar PV if integrated in an energy efficiency project.\nBiomass\nProjects related to clean transport, contributing to improvement of energy efficiency and the use of renewable energies (electric recharge infrastructures for electric or plug-in hybrid vehicles, braking energy recovery from electric public transport, fleet management, electric or hybrid buses, etc.)\nEnsuring an acceptable return of the investment.\nBeing included in an integrated plan for sustainable urban development\nNot being finished on receiving the funding.",null,null,null,123000000]
["IBEROEKA","Link ","Cross-cutting R&I: maximising the energy efficiency of cross-sector industrial components in a cost-efficient manner","Electricity efficiency, Heat efficiency and recovery, Carbon capture and storage, Renewable energy, Sustainable infrastructure","Spain, Portugal","IBEROEKA is a certification performed by CYTED for strategic innovation projects for member countries that include partner corporations from at least two Ibero-American countries and that have funding from national agencies. ","Third party financing","All sectors","Public","Public: national, Other","Not known","Link","The applicant must be a corporation from one of the member countries of CYTED.\nThe purpose of the project must be to obtain new products, processes or services that contribute to improving the production sectors and the competitiveness of the region."]
["CDTI \"Missions\" Programme","N/A",null,"Electricity efficiency, Heat efficiency and recovery, Carbon capture and storage, Renewable energy, Sustainable infrastructure","Spain","This programme intends to support large consortia projects, mainly with a focus on industrial research activities that will contribute to solve some of the problems arising in the MISSIONS.\nMISSIONS are defined as large thematic umbrellas/challenges under which specific sub-objectives will be specified. \nOne of the MISIONs that have been defined is called “Secure, clean and efficient Energy for the XXI century”. Many of the technologies and activities included in the IP of SET-PLAN are covered under this MISSION.",null,"All sectors","Public","Public: national","Not known","N/A"]
["Agencia Gallega de Innovacion ","Link","Cross-cutting R&I: improving system integration, optimal design, intelligent and flexible operation, including industrial symbiosis to increase energy and resource efficiency","Electricity efficiency, Heat efficiency and recovery, Carbon capture and storage, Renewable energy, Sustainable infrastructure","Spain","For innovative activities in Spain as well as innovation in materials processes and organisation. ","Grant/subsidies","All sectors","Public","Public: national","Not known","Link","Entities must be microenterprises, smalla nd medium enterprises, with registered offices or a work center in Spain",null,null,null,null,null,null,null,null,null,null,null,null,null,null,null,null,null,null,null,null,null,null,null,null,null,null,null,null,null,"http://www.investinspain.org/invest/wcm/idc/groups/public/documents/documento/mde4/nzk0/~edisp/doc2018794440.pdf"]
["Formas","Link","Cross-cutting R&I: improving system integration, optimal design, intelligent and flexible operation, including industrial symbiosis to increase energy and resource efficiency","Electricity efficiency, Heat efficiency and recovery, Carbon capture and storage, Renewable energy, Sustainable infrastructure","Sweden","Formas was tasked by the Government to initiate three 10-year national research programs, on climate, on sustainable spatial planning, social housing and the built environment, and on food.","Grant/subsidies","All sectors","Public","Public: national","4, 5, 6","Link","Open to consortia of companies, public organisations, universities and research institutes. ",null,null,null,"€ 139.350.000 per year",null,null,"No"]
["Grants for small and medium-sized enterprises for energy surveys","Link","Other","Electricity efficiency, Renewable energy","Sweden","To stimulate a more efficient use of energy, small and medium-sized enterprises are since 2010 eligible to apply for financial support to conduct energy surveys. The energy survey should include energy mapping, proposals of measures and an energy plan. The maximum support per entity is 50 percent, up to a maximum of SEK 50,000.","Grant/subsidies","All sectors","Public","Public: national","Not known","Link","Businesses using more than 300 MWh of energy annually, farms with at least 100 livestock units and economical organizations are eligible for the support.",null,null,null,null,null,4750,"Yes",null,null,null,null,null,null,null,null,null,null,null,null,null,null,null,null,null,null,null,null,null,null,"http://www.indlast.se/energymapping_small_medium.php"]
["Swedish research council","Link","Cross-cutting R&I: improving system integration, optimal design, intelligent and flexible operation, including industrial symbiosis to increase energy and resource efficiency",null,"Sweden","The Swedish Research Council is the largest public funding body for research at Swedish universities and higher education institutions. We fund research within all scientific disciplines by issuing calls for grant applications in open competition. Each year, the approximately 900 researchers who sit on our review panels deal with about 6 000 research applications. Each year, we award almost 7 billion SEK to fund Swedish research.","Grant/subsidies","All sectors","Public","Public: national","1, 2, 3","Link",null,null,null,null,"€ 648.900.000 per year",null,null,"No",null,null,null,null,null,null,null,null,null,null,null,null,null,null,null,null,null,null,null,null,null,null,null,"-"]
["Biofuels Program (2017-2021)","N/A","Sector-specific R&I: increasing the cost effectiveness of not yet economically viable technologies","Renewable energy","Sweden","Biofuels Program, (2017-2021), budget 180 MSEK, Through the program, the academy, industry and institutes will develop knowledge and develop the technology needed for a broad market introduction of biofuels\nproduced from lignocellulosa or residues., Biofuels Program, (2017-2021), budget 180 MSEK. Through the program, the academy, industry and institutes will develop knowledge and develop the technology needed for a broad market introduction of biofuels\nproduced from lignocellulosa or residues., Biofuels Program, (2017-2021), budget 180 MSEK, Through the program, the academy, industry and institutes will develop knowledge and develop the technology needed for a broad market introduction of biofuels produced from lignocellulosa or residues., Biofuels Program, (2017-2021), budget 180 MSEK. Through the program, the academy, industry and institutes will develop knowledge and develop the technology needed for a broad market introduction of biofuels produced from lignocellulosa or residues.","Grant/subsidies","Chemicals & Pharmaceuticals","Public","Public: national","4, 5, 6, 2, 3, 7","Link","2020 programmes are for the development of sustainable biofuels for aviation, and the development and improvement of processes for biofuels for road traffic, shipping, and aviation",null,null,null,16780000]
["TERMO - Heating and cooling for the future energy system program (2018-2021)","Link","Cross-cutting R&I: maximising the recovery of industrial excess heat/cold","Heat efficiency and recovery","Sweden","The program supports research and innovation that\ncontribute to the development of future heat and cooling solutions. Both technology and business models, organization and regulations. The program will also contribute to strengthening Swedish competitiveness. Projects with commercialization and knowledge-sharing are especially welcome.","Grant/subsidies","All sectors","Public","Public: national","Not known","Link",null,null,null,null,14910000]
["RE: Source strategic innovation programs (2019-2021)","Link","Cross-cutting R&I: maximising the energy efficiency of cross-sector industrial components in a cost-efficient manner","Electricity efficiency, Heat efficiency and recovery","Sweden","RE: Source strategic innovation programs, from 2019 to 2021, budget 156,5 MSEK, financed by Vinnova, the Swedish Energy Agency and Formas, the Swedish Energy Agency as chief authority, and RISE Research Institutes of Sweden. The program will increase the economic and environmental sustainability in resource and waste management, thus contributing to resource efficiency in business and society, creating new business opportunities, strengthening competitiveness and meeting global challenges. RE:Source is Sweden’s leading research and innovation investment within the resource and waste area. It is a national innovation arena and supports the development of innovations that can contribute to a more efficient use of resources in both society and business.","Grant/subsidies","All sectors","Public","Public: national","Not known","N/A",null,null,null,null,14590000]
["Industriklivet - the Industrial Leap Program (2018-2040)","N/A","Cross-cutting R&I: maximising the energy efficiency of cross-sector industrial components in a cost-efficient manner","Electricity efficiency, Heat efficiency and recovery, Carbon capture and storage, Renewable energy, Sustainable infrastructure","Sweden","The Swedish Parliament has adopted the climate goal that Sweden should not have any net grenehouse gas emisisons by 2045, and then achieve negative emissions. To support the transition, the Government has decided on the long-term strategy of industriklivet. ","Grant/subsidies","All sectors","Public","Public: national","1, 2, 3, 4, 5, 6, 7, 8, 9","N/A",null,null,null,null,"€ 27.960.000 per year",null,null,null,null,null,null,null,null,null,null,null,null,null,null,null,null,null,null,null,null,null,null,null,null,null,"https://www.ssab.co.uk/ssab/newsroom/2017/09/08/14/30/hybrit-in-focus-at-ssab-lulea"]
["Pilot-och demonstration projects","Link","Cross-cutting R&I: improving system integration, optimal design, intelligent and flexible operation, including industrial symbiosis to increase energy and resource efficiency","Electricity efficiency, Renewable energy, Sustainable infrastructure","Sweden","No total budget specified, pilot and demonstration projects and applications for feasibility studies for major pilot and demonstration projects within the framework of the Swedish Energy Agency’s mission. Larger pilot and demonstration projects are projects that applied for around SEK 10 million in support. Other pilot and demonstration projects are handled within the framework of the respective research\nprograms.","Grant/subsidies","All sectors","Public","Public: national","5, 6, 7","N/A"]
["Industry's energy and climate change (2019-2024)","Link","Cross-cutting R&I: improving system integration, optimal design, intelligent and flexible operation, including industrial symbiosis to increase energy and resource efficiency","Electricity efficiency, Heat efficiency and recovery, Carbon capture and storage, Renewable energy, Sustainable infrastructure","Sweden","The projects in the program should contribute to the industry's energy and climate change through reduced or negative greenhouse gas emissions and / or more efficient use of energy and resources. The program aims at increasing knowledge of and develop both new and existing processes focusing on energy and resource efficiency and a flexible and robust energy system. The program also encompasses the role of industry in a larger perspective, i.e. integration between industries, industrial symbiosis, to create an energy and resource efficient system from a holistic perspective.","Grant/subsidies","All sectors","Public","Public: national","1, 2, 3, 4, 5, 6, 7, 8, 9","N/A",null,null,null,null,9360000]
["Vinnova funding","Link","Cross-cutting R&I: improving system integration, optimal design, intelligent and flexible operation, including industrial symbiosis to increase energy and resource efficiency","Electricity efficiency, Heat efficiency and recovery, Carbon capture and storage, Renewable energy, Sustainable infrastructure","Sweden","Vinnova is Sweden's innovation agency. For us, innovation is about bold thinking and doing things differently to improve people's lives and our planet. We believe innovation is needed everywhere in society. This will make Sweden competitive and our world a different place.","Grant/subsidies","All sectors","Public","Public: national","1, 2, 3, 4, 5, 6, 7, 8, 9","Link","Varies by call for proposal"]
["Inosuisse/Competence Centers for Energy Research (SCCERs)","Link ","Cross-cutting R&I: improving system integration, optimal design, intelligent and flexible operation, including industrial symbiosis to increase energy and resource efficiency","Electricity efficiency, Heat efficiency and recovery, Renewable energy, Sustainable infrastructure","Switzerland","he Federal Council and Parliament are planning to make far-reaching changes to energy supply in Switzerland. As part of the “Swiss Coordinated Energy Research” action plan, Innosuisse, the Swiss National Science Foundation (SNSF) and the Swiss Federal Office of Energy (SFOE) have the joint mandate of managing and financing the establishment and operation of interdisciplinary research networks between higher education institutions, the Swiss Competence Centers for Energy Research (SCCERs). Innosuisse also receives additional funding for innovation projects in the field of energy.\nThe SCCERs are looking for solutions to the technical, social and political challenges relating to the 2050 Energy Strategy. Eight SCCERs are currently working on seven action areas. The centres bring together academia and industry, going a long way towards ensuring the transfer of knowledge and technology. They deal with the full spectrum of the energy innovation chain, from basic research and applied R&D to legal, regulatory and behavioural aspects. The SCCERs also provide research infrastructures as well as many opportunities to network with key experts and young researchers from the areas concerned.","Grant/subsidies","All sectors","Public","Public: national","1, 2, 3, 4, 5, 6, 7, 8, 9","Link","All TRL levels are supported. There are 7 action areas: Efficiency, Grids and their components/energy systems, storage, power supply, economy/environment/law/behaviour, efficient concepts/processes and components in mobility, biomass","Technical assistance / project development support",null,null,127000000]
["Swiss National Science Fund (SNF) Schemes","Link ","Cross-cutting R&I: improving system integration, optimal design, intelligent and flexible operation, including industrial symbiosis to increase energy and resource efficiency","Electricity efficiency, Heat efficiency and recovery, Carbon capture and storage, Renewable energy, Sustainable infrastructure","Switzerland","The SNSF was founded on 1 August 1952 by the scientific umbrella organisations of Switzerland. Its main tasks were and still are providing financial support for research projects in all academic disciplines and promoting young scientists. Numerous tasks were added in due course and the range of funding schemes and measures has become broader and more differentiated. ","Grant/subsidies","All sectors","Public","Public: national","1, 2, 3, 4, 5, 6, 7, 8, 9","Link ","Eligibility criteria varies per programme. ","Technical assistance / project development support"]
["Swiss Federal Office of Energy (SFOE) Programmes","Link ","Cross-cutting R&I: improving system integration, optimal design, intelligent and flexible operation, including industrial symbiosis to increase energy and resource efficiency","Electricity efficiency, Heat efficiency and recovery, Renewable energy, Sustainable infrastructure","Switzerland","The energy research programmes managed by the SFOE encompass the entire spectrum of energy research. It is currently managing 24 research programmes, half of which focus on energy efficiency and the other half on renewable energy. There are also four nuclear energy research programmes and one socioeconomic research programme.","Grant/subsidies","All sectors","Public","Public: national","1, 2, 3, 4, 5, 6, 7, 8, 9","Link","The SFOE provides subsidiary support for research projects that correspond to the priorities of its current energy research concept (2017 to 2020). The main focus is on application-oriented and development-related research projects. It is advisable for applicants to contact the head of the research programme (relevant SFOE contact) before they submit an application for support.\nThe energy research programmes managed by the SFOE encompass the entire spectrum of energy research. It is currently managing 24 research programmes, half of which focus on energy efficiency and the other half on renewable energy. There are also four nuclear energy research programmes and one socioeconomic research programme."]
["TÜBİTAK","Link ","Cross-cutting R&I: improving system integration, optimal design, intelligent and flexible operation, including industrial symbiosis to increase energy and resource efficiency","Electricity efficiency, Heat efficiency and recovery, Renewable energy","Turkey"," In 2019, The Scientific and Technological Research Council of Turkey (TÜBİTAK) has prepared a target-oriented call plan for energy with a total of 16 calls. These calls will be opened under a new support programme that emphases cross-sectoral collaboration. All of the calls are based on Technology Readiness Levels (TRLs) in support of a targeted approach. In addition, the Ministry of Industry and Technology has announced a comprehensive plan that integrates support across the chain of R&D, product development, investment, and uptake. In addition, the National Energy Efficiency Action Plan of Turkey (2017-2023) identifies energy efficiency measures for the industry. Each of the sub-sectors of the industry sector, including iron and steel, will reduce their energy intensity by 10%. These developments support the target of demonstrating the cost effectiveness of near commercialized technologies by 2030 in this industry.          ","Grant/subsidies","All sectors","Public","Public: national","1, 2, 3, 4, 5, 6, 7","Link","Specific eligibility criteria not found. Likely vary per specific programme","Technical assistance / project development support"]
["Energy Innovation Programme","Link","Cross-cutting R&I: improving system integration, optimal design, intelligent and flexible operation, including industrial symbiosis to increase energy and resource efficiency","Electricity efficiency, Renewable energy, Carbon capture and storage, Sustainable infrastructure, Heat efficiency and recovery","United Kingdom","This funding will support investments in innovations across the energy sector. For more information about the projects government is supporting, and to find application details on the latest open competitions, visit the following pages:\n\nHydrogen supply competition (Closed on 5 December 2018)\nUK government’s energy innovation investment portfolio\nInnovative renewables\nInnovative smart energy system technologies\nNuclear innovation\nInnovative low carbon industry\nInnovative built environment\nGreen finance\nEnergy Entrepreneurs Fund","Grant/subsidies","All sectors","Public","Public: national","4, 5, 6","N/A",null,null,null,null,56850000,null,null,null,null,null,null,null,null,null,null,null,null,null,null,null,null,null,null,null,null,null,null,null,null,null,"https://www.gov.uk/guidance/energy-innovation"]
["Enhanced Capital Allowance (ECA) Scheme","Link","Cross-cutting R&I: maximising the energy efficiency of cross-sector industrial components in a cost-efficient manner",null,"United Kingdom","The ETL (or Energy Technology Product List, ETPL) is a government-managed list of energy-efficient plant and machinery, such as boilers, electric motors, and air conditioning and refrigeration systems that qualify for full tax relief. For a product to be on the ETL, it must meet specific energy-saving or energy-efficient criteria. It is part of the Enhanced Capital Allowance (ECA) tax scheme for businesses.\n\nThe ECA scheme provides a financial incentive for businesses to invest in products that meet the standard for high energy efficiency performance set by th eETL. Companies that buy an ETL qualifying product are currently able to receive accelerated tax relief on the purchase of that equipment, by claiming a 100% capital allowance in the year of purchase","Tax rebates and exemptions","All sectors","Public","Public: national","7, 8, 9","Link","Products meet ETL standards if they elong in one of the three categories: Listed ETL technologies, \"unlisted\" ETL technlogies, combined heat and power (CHP)",null,null,null,"-",null,null,"No"]
["Green Investment Group","Link","Sector-specific R&I: progressing emerging technologies","Renewable energy","United Kingdom","We target investments in green infrastructure projects across:\n\nEstablished technologies like offshore wind, onshore wind, solar, hydro, inter-connectors, waste and biomass.\nEmerging technologies like tidal, biofuels, energy efficiency, storage, low carbon transport, smart grid, district heating.\nAll stages of the project lifecycle: development, construction and operations.\nThe capital structure, from debt to equity.","Equity finance, Debt financing","All sectors","Public, Private","Public: national, Private: investor","7, 8, 9","Link","Projects are chosen on a case-by-case basis buut must contribute to any one or more of the five \"green\" purposes:\n- The reduction of GHG emissions\n- The advancement of effiency in the use of natural resources\n- The protection or enhancement of the natural environment\n- The protection or enhancement of biodiversity\n- The promotion of environmental sustainability "]
["Mayor of London’s Energy Efficiency Fund ","Link","Cross-cutting R&I: maximising the energy efficiency of cross-sector industrial components in a cost-efficient manner","Electricity efficiency, Heat efficiency and recovery, Renewable energy, Sustainable infrastructure","United Kingdom","MEEF seeks to address market failures in London’s low carbon sector by providing flexible and competitive finance to enable, accelerate or enhance viable low carbon projects across London. MEEF will build on the success of the GLA’s London Green Fund including Amber’s existing fund, the London Energy Efficiency Fund (LEEF). For case studies on LEEF projects please see here. The scope and scale of MEEF is much greater than those of LEEF from both an investment and low carbon perspective.","Debt financing, Equity finance","All sectors","Public, Private","Public: national","7, 8, 9","Link","Project funding must be £3m - £20m\nLondon city only","Technical assistance / project development support",null,null,567000000,null,null,null,null,null,null,"Running to 2023",null,null,null,null,"Up to 19 years",null,null,"Flexible",null,null,null,null,null,null,null,null,null,null,"https://www.amberinfrastructure.com/our-funds/the-mayor-of-londons-energy-efficiency-fund/"]
["The carbon and energy fund","Link","Cross-cutting R&I: improving system integration, optimal design, intelligent and flexible operation, including industrial symbiosis to increase energy and resource efficiency",null,"United Kingdom","Launched by Greg Barker MP at IHEEM in 2011, the Carbon and Energy Fund (CEF) has been specifically created to fund, facilitate and project manage complex energy infrastructure upgrades for the NHS and wider Public Sector.\nWith a proven track record of more than 40 projects and in-depth experience of procurement, engineering, legal and finance, the CEF is the organisation to successfully guides Public Sector clients through the complex processes involved.","Debt financing","All sectors","Public","Public: national","7, 8, 9","Link","The route to working with the CEF is to seek membership, which then makes all the support of the CEF available to the New Member for the entire procurement, installation, and savings monitoring period of the contract. The CEF Process provides a robust and unique methodology procure projects. ","Technical assistance / project development support",null,null,327000000,1000000,32000000,null,null,null,"Projects are typicaly a minimum of 15 years"]
["UK Research and Innovation","Link","Other","Electricity efficiency, Heat efficiency and recovery, Carbon capture and storage, Renewable energy, Sustainable infrastructure","United Kingdom","UK Research and Innovation is a new body which works in partnership with universities, research organisations, businesses, charities, and government to create the best possible environment for research and innovation to flourish. We aim to maximise the contribution of each of our component parts, working individually and collectively. We work with our many partners to benefit everyone through knowledge, talent and ideas.","Grant/subsidies","All sectors","Public","Public: national","1, 2, 3","Link","All UK-based businesses may apply if they want to do one or more of the following:\nTo test the feasibility of their idea\nCreate a new product, process or service, or improve an existing one, thorugh research and development\nWork with other businesses or research organisations on collaborative projects",null,null,null,1350000000]
["BEIS Industrial Energy Efficiency Accelerator (IEEA)","Link","Cross-cutting R&I: maximising the energy efficiency of cross-sector industrial components in a cost-efficient manner","Electricity efficiency","United Kingdom","Launched by the Carbon Trust, the focus of this programme is on innovations with large cross-sector energy and carbon reduction impact, either from novel technologies or known technologies in new sectors. The target areas include all industrial and manufacturing sectors in the UK - this includes datacentres, water utilities, and the waste sector. Programme is open to private sector companies, universities and other research organisations; public sector bodies are not eligible. Funding is awarded on a competitive basis","Grant/subsidies","All sectors","Public","Public: national, Private: investor","5, 6, 7, 8","Link","The intention of the programme is to help developers and industrial partners to overcome the barriers to demonstration of potentially viable projects, predominantly through the provision of funding. To apply for a grant from the IEEA, the project should be at least at Technology Readiness Level (TRL) 5 before the contract is awarded, with a formalised plan in place to move the technology towards commercialisation via demonstration.","Technical assistance / project development support",null,null,9200000,null,null,null,null,null,null,"BEIS IEEA Phase 2 ran from 1 February – 30 April 2019. "]
["Mission Innovation ","Link","Cross-cutting R&I: improving system integration, optimal design, intelligent and flexible operation, including industrial symbiosis to increase energy and resource efficiency","Electricity efficiency, Heat efficiency and recovery","Worldwide","EU has been an active member in MI, global initiative of 23 countries and the Commission, aiming to double Clean Energy R&D Investment by 2020 compared to 2013-2015 levels. The EU is part of the Clean Energy R&D Focus Area on CCU and CCS.","Grant/subsidies","All sectors","Public","Public: international","Not known","N/A","For clean energy innovations",null,null,null,null,null,null,"Yes","Each participating country needs to double its governmental and/or state-directed clean energy research and development investment over five years ","Ongoing",null,"-","-","-","-","-","-","-","-","-","-","-","-","-","-","-","-","-","-","-","-","-"]
["European Clean Energy Transition Partnership","Link","Cross-cutting R&I: improving system integration, optimal design, intelligent and flexible operation, including industrial symbiosis to increase energy and resource efficiency","Electricity efficiency, Heat efficiency and recovery, Carbon capture and storage, Renewable energy, Sustainable infrastructure","EU-wide","A transformative R&I Programme across Europe, the European Partnership for Clean Energy \nTransition will boost and accelerate energy transition in all its dimensions. It will enable joint \nR&I programmes from regional to national and global level, co-supported by industry, public \norganisations, research and citizens’ organisations to make Europe a frontrunner in energy \ninnovation and eventually the first climate-neutral continent. With an ambitious SRIA targeting \n2030 it will address key challenges of energy transition with a clear output orientation and \nmeasurable impacts., A transformative R&I Programme across Europe, the European Partnership for Clean Energy Transition will boost and accelerate energy transition in all its dimensions. It will enable joint  R&I programmes from regional to national and global level, co-supported by industry, public organisations, research and citizens’ organisations to make Europe a frontrunner in energy \ninnovation and eventually the first climate-neutral continent. With an ambitious SRIA targeting 2030 it will address key challenges of energy transition with a clear output orientation and measurable impacts.","Grant/subsidies","All sectors","Public","Public: international","Not known","Link",null,"Technical assistance / project development support",null,null,null,null,null,null,null,null,null,null,null,null,null,null,null,null,null,null,null,null,null,null,null,null,null,null,null,null,null,"-"]
["Recovery and Resilience Facility","Link","Other","Electricity efficiency, Heat efficiency and recovery, Carbon capture and storage, Renewable energy, Sustainable infrastructure","EU-wide","The Recovery and Resilience Facility (the Facility) will make €672.5 billion in loans and grants available to support reforms and investments undertaken by Member States. The aim is to mitigate the economic and social impact of the coronavirus pandemic and make European economies and societies more sustainable, resilient and better prepared for the challenges and opportunities of the green and digital transitions.","Debt financing, Grant/subsidies","All sectors","Public","Public: international","Not known","Link","Eligibility criteria will depend on the programme through which the fund is channelled (e.g. InvestEU, Horizon Europe)",null,null,null,672500000000,null,null,null,null,"Ongoing"]
[]
["DO NOT WRITE HERE - Insert Rows Above"]
[]
[]
[]
[]
[]
[]
[]
[]
[]
[]
[]
[]
[]
[]
[]
[]
[]
[]
[]
[]
[]
[]
[]
[]
[]
[]
[]
[]
[]
[]
[]
[]
[]
[]
[]
[]
[]
[]
[]
[]
[]
[]
[]
[]
[]
[]
[]
[]
[]
[]
[" "]

{"sheet":"Lists","index":2,"n_rows":36,"n_cols":11,"rows_kept":36,"cut":false,"hidden":false,"merged":[]}
["Lists"]
[]
["Focus area of programme","Type of energy measure incentivised","Country / Region","Financial instrument","Sector applicability","Public or private finance","Source of finance","TRL","State aid rules that apply","Associated services","Co-funding required"]
["Sector-specific R&I: increasing the cost effectiveness of not yet economically viable technologies","Electricity efficiency","EU-wide","Equity finance","Iron & Steel","Public","Public: local",1,"1. Framework for State aid for research and development and innovation","Technical assistance / project development support","Yes"]
["Sector-specific R&I: progressing emerging technologies","Heat efficiency and recovery","Worldwide","Risk sharing facility","Chemicals & Pharmaceuticals","Private","Public: regional",2,"2. Guidelines on state aid for environmental protection and energy 2014 - 2020","Financial assistance","No"]
["Cross-cutting R&I: maximising the recovery of industrial excess heat/cold","Carbon capture and storage","Austria","Debt financing","Heating & Cooling",null,"Public: national",3,"Other","Capacity building assistance","N/A or unknown"]
["Cross-cutting R&I: maximising the energy efficiency of cross-sector industrial components in a cost-efficient manner","Renewable energy","Belgium","Guarantees","Cement",null,"Public: international",4,"N/A","Other"]
["Cross-cutting R&I: improving system integration, optimal design, intelligent and flexible operation, including industrial symbiosis to increase energy and resource efficiency","Sustainable infrastructure","Bulgaria","Grant/subsidies","Pulp & Paper",null,"Private: bank",5]
["Other",null,"Croatia","Tax rebates and exemptions","Systems ",null,"Private: investor",6]
[null,null,"Cyprus","Energy supplier obligations","All sectors",null,"Private: pension fund",7]
[null,null,"Czechia","Third party financing",null,null,"Private: insurance company",8]
[null,null,"Denmark","Blending instruments",null,null,"Other",9]
[null,null,"Estonia","Market-based financing ",null,null,"Not known","Fundamental Research (TRL 1 - 3)"]
[null,null,"Finland",null,null,null,null,"Industrial research (TRL 4 - 6)"]
[null,null,"France",null,null,null,null,"Experimental development (TRL 7 - 9)"]
[null,null,"Germany",null,null,null,null,"Not known"]
[null,null,"Greece"]
[null,null,"Hungary"]
[null,null,"Ireland"]
[null,null,"Italy"]
[null,null,"Latvia"]
[null,null,"Lithuania"]
[null,null,"Luxembourg"]
[null,null,"Malta"]
[null,null,"Netherlands"]
[null,null,"Poland"]
[null,null,"Portugal"]
[null,null,"Romania"]
[null,null,"Slovakia"]
[null,null,"Slovenia"]
[null,null,"Spain"]
[null,null,"Sweden"]
[null,null,"United Kingdom"]
[null,null,"Turkey"]
[null,null,"Norway"]
[null,null,"Switzerland"]

{"sheet":"Visualisation of data","index":3,"n_rows":12,"n_cols":16,"rows_kept":12,"cut":false,"hidden":true,"merged":[]}
[]
[]
[]
[null,null,null,"ID","x-axis","y-axis","size of bubble",null,"Electricity efficiency",null,"Heat efficiency and recovery",null,"Sustainable infrastructure",null,"Carbon capture and storage"]
[null,"Name of financing programme","Financial Instrument","Type of energy measure incentivised","TRL\n(1-9)","Comments on sources of finance and percentages per source (for purpose of graph have assigned numerical values to financial instrument)","Financial size in EUR","x","y","bubble","y","bubble","y","bubble","y","bubble"]
[null,{"$f":"#REF!","v":{"$error":"#REF!"}},{"$f":"#REF!","v":{"$error":"#REF!"}},"Electricity efficiency","1, 2, 3",1,200000000,"1,2,3",{"$f":"IF($D6=$I$4,$F6,NA())","v":1},{"$f":"IF(ISNA(I6),NA(),$G6)","v":200000000},{"$f":"IF($D6=$K$4,$F6,NA())","v":{"$error":"#N/A"}},{"$f":"IF(ISNA(K6),NA(),$G6)","v":{"$error":"#N/A"}},{"$f":"IF($D6=$M$4,$F6,NA())","v":{"$error":"#N/A"}},{"$f":"IF(ISNA(M6),NA(),$G6)","v":{"$error":"#N/A"}},{"$f":"IF($D6=$O$4,$F6,NA())","v":{"$error":"#N/A"}},{"$f":"IF(ISNA(O6),NA(),$G6)","v":{"$error":"#N/A"}}]
[null,{"$f":"#REF!","v":{"$error":"#REF!"}},{"$f":"#REF!","v":{"$error":"#REF!"}},"Sustainable infrastructure","4, 5, 6",1,10000000000,"4,5,6",{"$f":"IF($D7=$I$4,$F7,NA())","v":{"$error":"#N/A"}},{"$f":"IF(ISNA(I7),NA(),$G7)","v":{"$error":"#N/A"}},{"$f":"IF($D7=$K$4,$F7,NA())","v":{"$error":"#N/A"}},{"$error":"#N/A"},{"$f":"IF($D7=$M$4,$F7,NA())","v":1},10000000000,{"$f":"IF($D7=$O$4,$F7,NA())","v":{"$error":"#N/A"}},{"$error":"#N/A"}]
[null,{"$f":"#REF!","v":{"$error":"#REF!"}},{"$f":"#REF!","v":{"$error":"#REF!"}},"Heat efficiency and recovery","1, 2, 3",1,100000000000,"1,2,3",{"$error":"#N/A"},{"$error":"#N/A"},1,100000000000,{"$error":"#N/A"},{"$error":"#N/A"},{"$error":"#N/A"},{"$error":"#N/A"}]
[null,{"$f":"#REF!","v":{"$error":"#REF!"}},{"$f":"#REF!","v":{"$error":"#REF!"}},"Electricity efficiency","7, 8, 9","1,2,3","-","7,8,9","1,2,3","-",{"$error":"#N/A"},{"$error":"#N/A"},{"$error":"#N/A"},{"$error":"#N/A"},{"$error":"#N/A"},{"$error":"#N/A"}]
[null,{"$f":"#REF!","v":{"$error":"#REF!"}},{"$f":"#REF!","v":{"$error":"#REF!"}},"Carbon capture and storage","4, 5, 6",2,24050000000,"4,5,6",{"$error":"#N/A"},{"$error":"#N/A"},{"$error":"#N/A"},{"$error":"#N/A"},{"$error":"#N/A"},{"$error":"#N/A"},2,24050000000]
[null,{"$f":"#REF!","v":{"$error":"#REF!"}},{"$f":"#REF!","v":{"$error":"#REF!"}},"Sustainable infrastructure","4, 5, 6",4,310000000,"4,5,6",{"$error":"#N/A"},{"$error":"#N/A"},{"$error":"#N/A"},{"$error":"#N/A"},4,310000000,{"$error":"#N/A"},{"$error":"#N/A"}]
[null,{"$f":"#REF!","v":{"$error":"#REF!"}},{"$f":"#REF!","v":{"$error":"#REF!"}},"Carbon capture and storage","Not known",3,"-",null,{"$error":"#N/A"},{"$error":"#N/A"},{"$error":"#N/A"},{"$error":"#N/A"},{"$error":"#N/A"},{"$error":"#N/A"},3,"-"]